Workbook

Sheet Contenido

Sheet Pre_Genero
A1: BOLETÍN ESTADÍSTICO 2011 ESTUDIANTES DE PREGRADO MATRICULADOS POR PRIMERA VEZ POR GÉNERO
B11: Seleccione un Programa Académico de Pregrado
H13: 1 | I13: =VLOOKUP(H13,CONVENCIONES!A33:B66,2,FALSE) -> Administración del Medio Ambiente
E29: MASCULINO | F29: FEMENINO
D30: SEMESTRE I | E30: =VLOOKUP($I$13,$D$37:$I$70,2,FALSE) -> 33 | F30: =VLOOKUP($I$13,$D$37:$I$70,3,FALSE) -> 49
D31: SEMESTRE II | E31: =VLOOKUP($I$13,$D$37:$I$70,5,FALSE) -> 37 | F31: =VLOOKUP($I$13,$D$37:$I$70,6,FALSE) -> 44
B35: FACULTAD | C35: COD | D35: PROGRAMA | E35: I SEMESTRE | H35: II SEMESTRE
E36: MASCULINO | F36: FEMENINO | G36: TOTAL | H36: MASCULINO | I36: FEMENINO | J36: TOTAL
B37: Bellas Artes y Humanidades | C37: 4 | D37: Licenciatura en Artes Visuales | E37: 36 | F37: 31 | G37: 67 | H37: 0 | I37: 0 | J37: 0
C38: 66 | D38: Licenciatura en Filosofía (Nocturno) | E38: 29 | F38: 12 | G38: 41 | H38: 0 | I38: 0 | J38: 0
C39: 68 | D39: Licenciatura en Lengua Inglesa | E39: 38 | F39: 40 | G39: 78 | H39: 45 | I39: 40 | J39: 85
C40: 1 | D40: Licenciatura en Música | E40: 62 | F40: 23 | G40: 85 | H40: 0 | I40: 0 | J40: 0
B41: Ciencias Ambientales | C41: 27 | D41: Administración del Medio Ambiente | E41: 33 | F41: 49 | G41: 82 | H41: 37 | I41: 44 | J41: 81
C42: AG | D42: Técnico Profesional en Procesos del Turismo Sostenible (por ciclos propedéuticos) | E42: 35 | F42: 55 | G42: 90 | H42: 40 | I42: 46 | J42: 86
B43: Ciencias Básicas | C43: 7 | D43: Licenciatura en Matemáticas y Física | E43: 37 | F43: 19 | G43: 56 | H43: 0 | I43: 0 | J43: 0
B44: Ciencias de la Educación | C44: 6 | D44: Licenciatura en Comunicación e Informática Educativa | E44: 38 | F44: 43 | G44: 81 | H44: 41 | I44: 38 | J44: 79
C45: 9 | D45: Licenciatura en Español y Literatura (Nocturno) | E45: 33 | F45: 34 | G45: 67 | H45: 29 | I45: 36 | J45: 65
C46: 21 | D46: Licenciatura en Etnoeducación y Desarrollo Comunitario | E46: 25 | F46: 32 | G46: 57 | H46: 0 | I46: 0 | J46: 0
C47: 33 | D47: Licenciatura en Pedagogía Infantil | E47: 2 | F47: 106 | G47: 108 | H47: 11 | I47: 101 | J47: 112
C48: DY | D48: Licenciatura en Pedagogía Infantil (CERES Puerto Caldas (Pereira) - Risaralda) | H48: 0 | I48: 82 | J48: 82
C49: 80 | D49: Licenciatura en Pedagogía Infantil (CERES Quinchía - Risaralda) | E49: 5 | F49: 27 | G49: 32 | H49: 0 | I49: 0 | J49: 0
B50: Ciencias de la Salud | C50: 32 | D50: Ciencias del Deporte y la Recreación | E50: 57 | F50: 29 | G50: 86 | H50: 56 | I50: 27 | J50: 83
C51: 31 | D51: Medicina | E51: 26 | F51: 36 | G51: 62 | H51: 28 | I51: 36 | J51: 64
C52: 92 | D52: Medicina Veterinaria y Zootecnia | E52: 29 | F52: 19 | G52: 48 | H52: 22 | I52: 24 | J52: 46
C53: 99 | D53: Tecnología en Atención Prehospitalaria | E53: 16 | F53: 26 | G53: 42 | H53: 15 | I53: 19 | J53: 34
B54: Ingeniería Industrial | C54: 13 | D54: Ingeniería Industrial | E54: 46 | F54: 40 | G54: 86 | H54: 47 | I54: 39 | J54: 86
C55: 38 | D55: Ingeniería Industrial (Nocturno) | E55: 53 | F55: 46 | G55: 99 | H55: 53 | I55: 49 | J55: 102
B56: Ingeniería Mecánica | C56: 14 | D56: Ingeniería Mecánica | E56: 76 | F56: 5 | G56: 81 | H56: 77 | I56: 8 | J56: 85
B57: Ingenierías Eléctrica, Electrónica, Física y Ciencias de la Computación | C57: 28 | D57: Ingeniería de Sistemas y Computación | E57: 74 | F57: 7 | G57: 81 | H57: 72 | I57: 15 | J57: 87
C58: 37 | D58: Ingeniería de Sistemas y Computación (Nocturno) | E58: 61 | F58: 17 | G58: 78 | H58: 51 | I58: 18 | J58: 69
C59: 12 | D59: Ingeniería Eléctrica | E59: 69 | F59: 13 | G59: 82 | H59: 65 | I59: 18 | J59: 83
C60: 36 | D60: Ingeniería Electrónica (Nocturno) | E60: 54 | F60: 2 | G60: 56 | H60: 38 | I60: 14 | J60: 52
C61: 34 | D61: Ingeniería Física | E61: 53 | F61: 30 | G61: 83 | H61: 0 | I61: 0 | J61: 0
B62: Tecnologías | C62: 53 | D62: Administración Industrial | E62: 7 | F62: 16 | G62: 23 | H62: 14 | I62: 8 | J62: 22
C63: 89 | D63: Ingeniería en Mecatrónica (por ciclos propedéuticos) | E63: 16 | F63: 0 | G63: 16 | H63: 0 | I63: 0 | J63: 0
C64: 16 | D64: Química Industrial | H64: 34 | I64: 49 | J64: 83
C65: 86 | D65: Técnico Profesional en Mecatrónica (por ciclos propedéuticos) | E65: 77 | F65: 4 | G65: 81 | H65: 63 | I65: 5 | J65: 68
C66: 22 | D66: Tecnología Eléctrica | E66: 64 | F66: 18 | G66: 82 | H66: 64 | I66: 22 | J66: 86
C67: 23 | D67: Tecnología Industrial | E67: 44 | F67: 39 | G67: 83 | H67: 41 | I67: 46 | J67: 87
C68: BN | D68: Tecnología Industrial (CERES Belén de Umbría - Risaralda) | E68: 0 | F68: 0 | G68: 0 | H68: 10 | I68: 20 | J68: 30
C69: 24 | D69: Tecnología Mecánica | E69: 73 | F69: 8 | G69: 81 | H69: 79 | I69: 4 | J69: 83
C70: 25 | D70: Tecnología Química | E70: 32 | F70: 53 | G70: 85 | H70: 0 | I70: 0 | J70: 0
B71: TOTAL | E71: 1300 | F71: 879 | G71: 2179 | H71: 1032 | I71: 808 | J71: 1840
B76: Fuente: Base de datos del centro de registro y control académico

Sheet Edad
A1: BOLETÍN ESTADÍSTICO 2011 ESTUDIANTES DE PREGRADO MATRICULADOS POR PRIMERA VEZ POR EDAD
B11: Seleccione un Programa Académico de Pregrado
I13: 1 | J13: =VLOOKUP(I13,CONVENCIONES!A33:B66,2,FALSE) -> Administración del Medio Ambiente
D29: SEMESTRE I | E29: =VLOOKUP($J$13,$D$41:$Q$71,2,FALSE) -> 0 | F29: =VLOOKUP($J$13,$D$41:$Q$71,3,FALSE) -> 0 | G29: =VLOOKUP($J$13,$D$41:$Q$71,4,FALSE) -> 5 | H29: =VLOOKUP($J$13,$D$41:$Q$71,5,FALSE) -> 42 | I29: =VLOOKUP($J$13,$D$41:$Q$71,6,FALSE) -> 20 | J29: =VLOOKUP($J$13,$D$41:$Q$71,7,FALSE) -> 9 | K29: =VLOOKUP($J$13,$D$41:$Q$71,8,FALSE) -> 4 | L29: =VLOOKUP($J$13,$D$41:$Q$71,9,FALSE) -> 0 | M29: =VLOOKUP($J$13,$D$41:$Q$71,10,FALSE) -> 0 | N29: =VLOOKUP($J$13,$D$41:$Q$71,11,FALSE) -> 0 | O29: =VLOOKUP($J$13,$D$41:$Q$71,12,FALSE) -> 1 | P29: =VLOOKUP($J$13,$D$41:$Q$71,13,FALSE) -> 0 | Q29: =VLOOKUP($J$13,$D$41:$Q$71,14,FALSE) -> 1
D30: SEMESTRE II | E30: =VLOOKUP($J$13,$D$80:$Q$104,2,FALSE) -> 0 | F30: =VLOOKUP($J$13,$D$80:$Q$104,3,FALSE) -> 0 | G30: =VLOOKUP($J$13,$D$80:$Q$104,4,FALSE) -> 6 | H30: =VLOOKUP($J$13,$D$80:$Q$104,5,FALSE) -> 30 | I30: =VLOOKUP($J$13,$D$80:$Q$104,6,FALSE) -> 22 | J30: =VLOOKUP($J$13,$D$80:$Q$104,7,FALSE) -> 9 | K30: =VLOOKUP($J$13,$D$80:$Q$104,8,FALSE) -> 5 | L30: =VLOOKUP($J$13,$D$80:$Q$104,9,FALSE) -> 1 | M30: =VLOOKUP($J$13,$D$80:$Q$104,10,FALSE) -> 2 | N30: =VLOOKUP($J$13,$D$80:$Q$104,11,FALSE) -> 3 | O30: =VLOOKUP($J$13,$D$80:$Q$104,12,FALSE) -> 0 | P30: =VLOOKUP($J$13,$D$80:$Q$104,13,FALSE) -> 2 | Q30: =VLOOKUP($J$13,$D$80:$Q$104,14,FALSE) -> 1
B37: ESTUDIANTES MATRICULADOS POR PRIMERA VEZ SEGÚN EDAD (2011-I)
B39: FACULTAD | C39: COD | D39: PROGRAMA | E39: EDAD | R39: TOTAL
E40: 14 | F40: 15 | G40: 16 | H40: 17 | I40: 18 | J40: 19 | K40: 20 | L40: 21 | M40: 22 | N40: 23 | O40: 24 | P40: 25 | Q40: 25+
B41: Facultad de Bellas Artes y Humanidades | C41: 1 | D41: Licenciatura en Música | G41: 3 | H41: 15 | I41: 20 | J41: 11 | K41: 9 | L41: 5 | M41: 4 | O41: 5 | P41: 4 | Q41: 9 | R41: 85
C42: 4 | D42: Licenciatura en Artes Visuales | G42: 2 | H42: 18 | I42: 17 | J42: 10 | K42: 3 | L42: 5 | M42: 3 | N42: 2 | O42: 2 | Q42: 5 | R42: 67
C43: 66 | D43: Licenciatura en Filosofía (Nocturno) | G43: 2 | H43: 8 | I43: 11 | J43: 6 | K43: 1 | L43: 3 | M43: 2 | N43: 1 | O43: 1 | P43: 1 | Q43: 5 | R43: 41
C44: 68 | D44: Licenciatura en Lengua Inglesa | G44: 1 | H44: 28 | I44: 17 | J44: 7 | K44: 8 | M44: 4 | N44: 5 | P44: 1 | Q44: 7 | R44: 78
B45: Facultad de Ciencias Ambientales | C45: 27 | D45: Administración del Medio Ambiente | G45: 5 | H45: 42 | I45: 20 | J45: 9 | K45: 4 | O45: 1 | Q45: 1 | R45: 82
C46: AG | D46: Técnico Profesional en Procesos del Turismo Sostenible (por ciclos propedéuticos) | G46: 1 | H46: 23 | I46: 14 | J46: 10 | K46: 8 | L46: 5 | M46: 2 | N46: 6 | O46: 4 | P46: 2 | Q46: 15 | R46: 90
B47: Facultad de Ciencias Básicas | C47: 7 | D47: Licenciatura en Matemáticas y Física | G47: 3 | H47: 12 | I47: 12 | J47: 6 | K47: 1 | L47: 2 | M47: 2 | N47: 3 | O47: 3 | P47: 1 | Q47: 11 | R47: 56
B48: Facultad de Ciencias de la Educación | C48: 6 | D48: Licenciatura en Comunicación e Informática Educativa | F48: 1 | G48: 3 | H48: 32 | I48: 17 | J48: 16 | K48: 7 | L48: 1 | M48: 2 | Q48: 2 | R48: 81
C49: 9 | D49: Licenciatura en Español y Literatura (Nocturno) | H49: 10 | I49: 14 | J49: 8 | K49: 5 | L49: 5 | M49: 2 | N49: 2 | O49: 3 | P49: 1 | Q49: 17 | R49: 67
C50: 21 | D50: Licenciatura en Etnoeducación y Desarrollo Comunitario | G50: 1 | H50: 7 | I50: 13 | J50: 6 | K50: 8 | L50: 8 | M50: 2 | N50: 2 | P50: 1 | Q50: 9 | R50: 57
C51: 33 | D51: Licenciatura en Pedagogía Infantil | G51: 4 | H51: 41 | I51: 27 | J51: 14 | K51: 9 | L51: 4 | M51: 4 | N51: 1 | O51: 1 | Q51: 3 | R51: 108
C52: 80 | D52: Licenciatura en Pedagogía Infantil (CERES Quinchía - Risaralda) | H52: 3 | I52: 1 | J52: 1 | K52: 3 | N52: 2 | O52: 1 | P52: 2 | Q52: 19 | R52: 32
B53: Facultad de Ciencias de la Salud | C53: 31 | D53: Medicina | G53: 5 | H53: 13 | I53: 15 | J53: 9 | K53: 11 | L53: 1 | M53: 4 | O53: 2 | Q53: 2 | R53: 62
C54: 32 | D54: Ciencias del Deporte y la Recreación | G54: 4 | H54: 36 | I54: 25 | J54: 8 | K54: 4 | L54: 2 | M54: 4 | N54: 3 | Q54: 0 | R54: 86
C55: 92 | D55: Medicina Veterinaria y Zootecnia | G55: 1 | H55: 19 | I55: 17 | J55: 5 | K55: 2 | L55: 2 | Q55: 2 | R55: 48
C56: 99 | D56: Tecnología en Atención Prehospitalaria | G56: 1 | H56: 19 | I56: 9 | J56: 2 | K56: 3 | L56: 3 | M56: 1 | N56: 1 | O56: 1 | P56: 1 | Q56: 1 | R56: 42
B57: Facultad de Ingeniería Industrial | C57: 13 | D57: Ingeniería Industrial | G57: 7 | H57: 55 | I57: 9 | J57: 5 | K57: 5 | M57: 1 | O57: 1 | P57: 1 | Q57: 2 | R57: 86
C58: 38 | D58: Ingeniería Industrial (Nocturno) | G58: 1 | H58: 10 | I58: 15 | J58: 13 | K58: 16 | L58: 4 | M58: 6 | N58: 8 | O58: 3 | P58: 6 | Q58: 17 | R58: 99
B59: Facultad de Ingeniería Mecánica | C59: 14 | D59: Ingeniería Mecánica | G59: 7 | H59: 44 | I59: 19 | J59: 5 | K59: 3 | M59: 1 | Q59: 2 | R59: 81
B60: Facultad de Ingenierías Eléctrica, Electrónica, Física y Ciencias de la Computación | C60: 12 | D60: Ingeniería Eléctrica | F60: 1 | G60: 6 | H60: 41 | I60: 18 | J60: 7 | K60: 5 | L60: 1 | M60: 3 | Q60: 0 | R60: 82
C61: 28 | D61: Ingeniería de Sistemas y Computación | F61: 1 | G61: 8 | H61: 42 | I61: 15 | J61: 5 | K61: 6 | L61: 2 | P61: 1 | Q61: 1 | R61: 81
C62: 34 | D62: Ingeniería Física | F62: 2 | G62: 7 | H62: 31 | I62: 21 | J62: 5 | K62: 4 | L62: 5 | M62: 4 | N62: 1 | Q62: 3 | R62: 83
C63: 36 | D63: Ingeniería Electrónica (Nocturno) | G63: 5 | H63: 18 | I63: 10 | J63: 6 | K63: 1 | L63: 6 | M63: 2 | N63: 1 | O63: 3 | P63: 3 | Q63: 1 | R63: 56
C64: 37 | D64: Ingeniería de Sistemas y Computación (Nocturno) | G64: 2 | H64: 15 | I64: 18 | J64: 6 | K64: 6 | L64: 2 | M64: 9 | N64: 2 | O64: 1 | P64: 2 | Q64: 15 | R64: 78
B65: Facultad de Tecnología | C65: 22 | D65: Tecnología Eléctrica | G65: 1 | H65: 26 | I65: 24 | J65: 19 | K65: 5 | L65: 3 | N65: 1 | O65: 1 | Q65: 2 | R65: 82
C66: 23 | D66: Tecnología Industrial | G66: 7 | H66: 31 | I66: 23 | J66: 10 | K66: 4 | L66: 2 | M66: 3 | P66: 2 | Q66: 1 | R66: 83
C67: 24 | D67: Tecnología Mecánica | F67: 1 | G67: 2 | H67: 27 | I67: 22 | J67: 13 | K67: 8 | L67: 4 | M67: 2 | N67: 1 | O67: 1 | Q67: 0 | R67: 81
C68: 25 | D68: Tecnología Química | G68: 3 | H68: 38 | I68: 28 | J68: 5 | K68: 5 | L68: 2 | N68: 2 | Q68: 2 | R68: 85
C69: 53 | D69: Administración Industrial | L69: 7 | M69: 3 | N69: 3 | O69: 2 | P69: 2 | Q69: 6 | R69: 23
C70: 86 | D70: Técnico Profesional en Mecatrónica (por ciclos propedéuticos) | G70: 5 | H70: 37 | I70: 21 | J70: 3 | K70: 4 | L70: 2 | M70: 2 | N70: 1 | P70: 2 | Q70: 4 | R70: 81
C71: 89 | D71: Ingeniería en Mecatrónica (por ciclos propedéuticos) | I71: 1 | J71: 3 | K71: 2 | L71: 2 | M71: 2 | N71: 2 | P71: 1 | Q71: 3 | R71: 16
B72: TOTAL | E72: 0 | F72: 6 | G72: 97 | H72: 741 | I72: 493 | J72: 233 | K72: 160 | L72: 88 | M72: 74 | N72: 50 | O72: 36 | P72: 34 | Q72: 167 | R72: 2179
B74: Fuente: Base de datos del centro de registro y control académico
B76: ESTUDIANTES MATRICULADOS POR PRIMERA VEZ SEGÚN EDAD (2011-II)
B78: FACULTAD | C78: COD | D78: PROGRAMA | E78: EDAD | R78: TOTAL
E79: 14 | F79: 15 | G79: 16 | H79: 17 | I79: 18 | J79: 19 | K79: 20 | L79: 21 | M79: 22 | N79: 23 | O79: 24 | P79: 25 | Q79: 25+
B80: Facultad de Bellas Artes y Humanidades | C80: 68 | D80: Licenciatura en Lengua Inglesa | G80: 2 | H80: 24 | I80: 18 | J80: 12 | K80: 6 | L80: 5 | M80: 4 | N80: 5 | Q80: 9 | R80: 85
B81: Facultad de Ciencias Ambientales | C81: 27 | D81: Administración del Medio Ambiente | G81: 6 | H81: 30 | I81: 22 | J81: 9 | K81: 5 | L81: 1 | M81: 2 | N81: 3 | P81: 2 | Q81: 1 | R81: 81
C82: AG | D82: Técnico Profesional en Procesos del Turismo Sostenible (por ciclos propedéuticos) | G82: 2 | H82: 17 | I82: 17 | J82: 16 | K82: 12 | L82: 4 | M82: 1 | N82: 1 | O82: 2 | P82: 1 | Q82: 13 | R82: 86
B83: Facultad de Ciencias de la Educación | C83: 6 | D83: Licenciatura en Comunicación e Informática Educativa | G83: 3 | H83: 28 | I83: 16 | J83: 7 | K83: 5 | L83: 8 | M83: 5 | N83: 3 | P83: 1 | Q83: 3 | R83: 79
C84: 9 | D84: Licenciatura en Español y Literatura (Nocturno) | H84: 12 | I84: 8 | J84: 9 | K84: 8 | L84: 6 | M84: 2 | N84: 4 | O84: 2 | P84: 4 | Q84: 10 | R84: 65
C85: 33 | D85: Licenciatura en Pedagogía Infantil | G85: 3 | H85: 34 | I85: 29 | J85: 15 | K85: 12 | L85: 2 | M85: 4 | N85: 4 | O85: 3 | P85: 1 | Q85: 5 | R85: 112
C86: DY | D86: Licenciatura en Pedagogía Infantil (CERES Puerto Caldas (Pereira) - Risaralda) * | G86: 1 | I86: 1 | K86: 1 | M86: 1 | N86: 3 | O86: 2 | Q86: 73 | R86: 82
B87: Facultad de Ciencias de la Salud | C87: 31 | D87: Medicina | G87: 10 | H87: 28 | I87: 12 | J87: 7 | K87: 3 | L87: 3 | M87: 1 | Q87: 0 | R87: 64
C88: 32 | D88: Ciencias del Deporte y la Recreación | G88: 4 | H88: 40 | I88: 20 | J88: 7 | K88: 9 | L88: 3 | Q88: 0 | R88: 83
C89: 92 | D89: Medicina Veterinaria y Zootecnia | G89: 5 | H89: 11 | I89: 12 | J89: 4 | K89: 2 | L89: 3 | M89: 3 | N89: 1 | O89: 1 | P89: 2 | Q89: 2 | R89: 46
C90: 99 | D90: Tecnología en Atención Prehospitalaria | H90: 10 | I90: 10 | J90: 4 | K90: 4 | M90: 2 | P90: 1 | Q90: 3 | R90: 34
B91: Facultad de Ingeniería Industrial | C91: 13 | D91: Ingeniería Industrial | E91: 1 | G91: 14 | H91: 35 | I91: 22 | J91: 5 | K91: 2 | L91: 4 | M91: 1 | N91: 1 | Q91: 1 | R91: 86
C92: 38 | D92: Ingeniería Industrial (Nocturno) | H92: 19 | I92: 17 | J92: 12 | K92: 10 | L92: 5 | M92: 6 | N92: 5 | O92: 6 | P92: 2 | Q92: 20 | R92: 102
B93: Facultad de Ingeniería Mecánica | C93: 14 | D93: Ingeniería Mecánica | G93: 3 | H93: 37 | I93: 21 | J93: 12 | K93: 5 | L93: 3 | M93: 1 | O93: 1 | Q93: 2 | R93: 85
B94: Facultad de Ingenierías Eléctrica, Electrónica, Física y Ciencias de la Computación | C94: 12 | D94: Ingeniería Eléctrica | G94: 6 | H94: 37 | I94: 17 | J94: 10 | K94: 5 | L94: 2 | M94: 1 | N94: 3 | O94: 1 | Q94: 1 | R94: 83
C95: 28 | D95: Ingeniería de Sistemas y Computación | G95: 9 | H95: 34 | I95: 21 | J95: 12 | K95: 6 | L95: 2 | N95: 1 | Q95: 2 | R95: 87
C96: 36 | D96: Ingeniería Electrónica (Nocturno) | G96: 1 | H96: 18 | I96: 12 | J96: 6 | K96: 3 | L96: 3 | M96: 4 | N96: 1 | O96: 1 | P96: 1 | Q96: 2 | R96: 52
C97: 37 | D97: Ingeniería de Sistemas y Computación (Nocturno) | G97: 1 | H97: 6 | I97: 13 | J97: 12 | K97: 6 | L97: 8 | M97: 1 | N97: 4 | O97: 3 | P97: 5 | Q97: 10 | R97: 69
B98: Facultad de Tecnología | C98: 16 | D98: Química Industrial | G98: 5 | H98: 34 | I98: 23 | J98: 9 | K98: 4 | L98: 3 | M98: 1 | P98: 2 | Q98: 2 | R98: 83
C99: 22 | D99: Tecnología Eléctrica | G99: 1 | H99: 31 | I99: 18 | J99: 14 | K99: 8 | L99: 6 | M99: 2 | N99: 2 | O99: 1 | P99: 1 | Q99: 2 | R99: 86
C100: 23 | D100: Tecnología Industrial | F100: 1 | G100: 7 | H100: 45 | I100: 14 | J100: 9 | K100: 4 | L100: 5 | O100: 2 | Q100: 0 | R100: 87
C101: 24 | D101: Tecnología Mecánica | G101: 6 | H101: 30 | I101: 22 | J101: 7 | K101: 11 | L101: 4 | M101: 1 | N101: 1 | Q101: 1 | R101: 83
C102: 53 | D102: Administración Industrial | L102: 4 | M102: 5 | N102: 1 | O102: 1 | Q102: 11 | R102: 22
C103: 86 | D103: Técnico Profesional en Mecatrónica (por ciclos propedéuticos) | F103: 1 | G103: 1 | H103: 12 | I103: 16 | J103: 8 | K103: 4 | M103: 3 | N103: 4 | O103: 1 | P103: 4 | Q103: 14 | R103: 68
C104: BN | D104: Tecnología Industrial (CERES Belén de Umbría - Risaralda) | H104: 5 | I104: 5 | J104: 4 | L104: 2 | M104: 1 | O104: 2 | P104: 2 | Q104: 9 | R104: 30
B105: TOTAL | E105: 1 | F105: 2 | G105: 90 | H105: 577 | I105: 386 | J105: 210 | K105: 135 | L105: 86 | M105: 52 | N105: 47 | O105: 29 | P105: 29 | Q105: 196 | R105: 1840
B107: Fuente: Base de datos del centro de registro y control académico

Sheet Estrato
A1: BOLETÍN ESTADÍSTICO 2011 ESTUDIANTES DE PREGRADO MATRICULADOS POR PRIMERA VEZ POR ESTRATO
B10: Seleccione un programa académico de Pregrado
E11: 33 | F11: =VLOOKUP(E11,CONVENCIONES!A33:B66,2,FALSE) -> Tecnología Mecánica
D23: SEMESTRE I | E23: =VLOOKUP($F$11,$D$39:$R$72,2,FALSE) -> 20 | F23: =VLOOKUP($F$11,$D$39:$R$72,3,FALSE) -> 38 | G23: =VLOOKUP($F$11,$D$39:$R$72,4,FALSE) -> 19 | H23: =VLOOKUP($F$11,$D$39:$R$72,5,FALSE) -> 4 | I23: =VLOOKUP($F$11,$D$39:$R$72,6,FALSE) -> 0 | J23: =VLOOKUP($F$11,$D$39:$R$72,7,FALSE) -> 0
D24: SEMESTRE II | E24: =VLOOKUP($F$11,$D$39:$R$72,9,FALSE) -> 15 | F24: =VLOOKUP($F$11,$D$39:$R$72,10,FALSE) -> 40 | G24: =VLOOKUP($F$11,$D$39:$R$72,11,FALSE) -> 17 | H24: =VLOOKUP($F$11,$D$39:$R$72,12,FALSE) -> 10 | I24: =VLOOKUP($F$11,$D$39:$R$72,13,FALSE) -> 1 | J24: =VLOOKUP($F$11,$D$39:$R$72,14,FALSE) -> 0
B37: FACULTAD | C37: COD | D37: PROGRAMA | E37: I SEMESTRE | L37: II SEMESTRE
E38: I | F38: II | G38: III | H38: IV | I38: V | J38: VI | K38: TOTAL | L38: I | M38: II | N38: III | O38: IV | P38: V | Q38: VI | R38: TOTAL
B39: Bellas Artes y Humanidades | C39: 4 | D39: Licenciatura en Artes Visuales | E39: 14 | F39: 31 | G39: 14 | H39: 6 | I39: 1 | J39: 1 | K39: 67 | L39: 0 | M39: 0 | N39: 0 | O39: 0 | P39: 0 | Q39: 0 | R39: 0
C40: 66 | D40: Licenciatura en Filosofía (Nocturno) | E40: 15 | F40: 17 | G40: 7 | H40: 1 | I40: 1 | J40: 0 | K40: 41 | L40: 0 | M40: 0 | N40: 0 | O40: 0 | P40: 0 | Q40: 0 | R40: 0
C41: 68 | D41: Licenciatura en Lengua Inglesa | E41: 11 | F41: 44 | G41: 21 | H41: 2 | I41: 0 | J41: 0 | K41: 78 | L41: 20 | M41: 44 | N41: 18 | O41: 3 | P41: 0 | Q41: 0 | R41: 85
C42: 1 | D42: Licenciatura en Música | E42: 21 | F42: 32 | G42: 20 | H42: 9 | I42: 2 | J42: 1 | K42: 85 | L42: 0 | M42: 0 | N42: 0 | O42: 0 | P42: 0 | Q42: 0 | R42: 0
B43: Ciencias Ambientales | C43: 27 | D43: Administración del Medio Ambiente | E43: 11 | F43: 0 | G43: 17 | H43: 7 | I43: 0 | J43: 3 | K43: 82 | L43: 16 | M43: 40 | N43: 16 | O43: 8 | P43: 1 | Q43: 0 | R43: 81
C44: AG | D44: Técnico Profesional en Procesos del Turismo Sostenible (por ciclos propedéuticos) | E44: 31 | F44: 40 | G44: 14 | H44: 4 | I44: 1 | J44: 0 | K44: 90 | L44: 27 | M44: 39 | N44: 14 | O44: 6 | P44: 0 | Q44: 0 | R44: 86
B45: Ciencias Básicas | C45: 7 | D45: Licenciatura en Matemáticas y Física | E45: 22 | F45: 30 | G45: 3 | H45: 0 | I45: 0 | J45: 1 | K45: 56 | L45: 0 | M45: 0 | N45: 0 | O45: 0 | P45: 0 | Q45: 0 | R45: 0
B46: Ciencias de la Educación | C46: 6 | D46: Licenciatura en Comunicación e Informática Educativa | E46: 19 | F46: 42 | G46: 17 | H46: 2 | I46: 1 | J46: 0 | K46: 81 | L46: 18 | M46: 39 | N46: 17 | O46: 3 | P46: 2 | Q46: 0 | R46: 79
C47: 9 | D47: Licenciatura en Español y Literatura (Nocturno) | E47: 20 | F47: 39 | G47: 6 | H47: 2 | I47: 0 | J47: 0 | K47: 67 | L47: 21 | M47: 29 | N47: 12 | O47: 2 | P47: 1 | Q47: 0 | R47: 65
C48: 21 | D48: Licenciatura en Etnoeducación y Desarrollo Comunitario | E48: 23 | F48: 29 | G48: 4 | H48: 1 | I48: 0 | J48: 0 | K48: 57 | L48: 0 | M48: 0 | N48: 0 | O48: 0 | P48: 0 | Q48: 0 | R48: 0
C49: 33 | D49: Licenciatura en Pedagogía Infantil * | E49: 24 | F49: 60 | G49: 20 | H49: 4 | I49: 0 | J49: 0 | K49: 108 | L49: 38 | M49: 53 | N49: 20 | O49: 1 | P49: 0 | Q49: 0 | R49: 112
C50: DY | D50: Licenciatura en Pedagogía Infantil (CERES Puerto Caldas (Pereira) - Risaralda) * | K50: 0 | L50: 69 | M50: 12 | N50: 1 | O50: 0 | P50: 0 | Q50: 0 | R50: 82
C51: 80 | D51: Licenciatura en Pedagogía Infantil (CERES Quinchía - Risaralda) | E51: 30 | F51: 2 | G51: 0 | H51: 0 | I51: 0 | J51: 0 | K51: 32 | L51: 0 | M51: 0 | N51: 0 | O51: 0 | P51: 0 | Q51: 0 | R51: 0
B52: Ciencias de la Salud | C52: 32 | D52: Ciencias del Deporte y la Recreación | E52: 21 | F52: 35 | G52: 24 | H52: 5 | I52: 0 | J52: 1 | K52: 86 | L52: 18 | M52: 33 | N52: 25 | O52: 7 | P52: 0 | Q52: 0 | R52: 83
C53: 31 | D53: Medicina | E53: 11 | F53: 27 | G53: 10 | H53: 10 | I53: 2 | J53: 2 | K53: 62 | L53: 7 | M53: 26 | N53: 18 | O53: 8 | P53: 3 | Q53: 2 | R53: 64
C54: 92 | D54: Medicina Veterinaria y Zootecnia | E54: 1 | F54: 8 | G54: 9 | H54: 23 | I54: 5 | J54: 2 | K54: 48 | L54: 2 | M54: 8 | N54: 21 | O54: 12 | P54: 2 | Q54: 1 | R54: 46
C55: 99 | D55: Tecnología en Atención Prehospitalaria | E55: 3 | F55: 24 | G55: 4 | H55: 9 | I55: 2 | J55: 0 | K55: 42 | L55: 6 | M55: 14 | N55: 9 | O55: 4 | P55: 1 | Q55: 0 | R55: 34
B56: Ingeniería Industrial | C56: 13 | D56: Ingeniería Industrial | E56: 12 | F56: 36 | G56: 19 | H56: 14 | I56: 3 | J56: 2 | K56: 86 | L56: 11 | M56: 31 | N56: 30 | O56: 10 | P56: 2 | Q56: 2 | R56: 86
C57: 38 | D57: Ingeniería Industrial (Nocturno) | E57: 7 | F57: 34 | G57: 30 | H57: 27 | I57: 1 | J57: 0 | K57: 99 | L57: 12 | M57: 34 | N57: 33 | O57: 16 | P57: 6 | Q57: 1 | R57: 102
B58: Ingeniería Mecánica | C58: 14 | D58: Ingeniería Mecánica | E58: 9 | F58: 35 | G58: 25 | H58: 10 | I58: 1 | J58: 1 | K58: 81 | L58: 15 | M58: 31 | N58: 26 | O58: 13 | P58: 0 | Q58: 0 | R58: 85
B59: Ingenierías Eléctrica, Electrónica, Física y Ciencias de la Computación | C59: 28 | D59: Ingeniería de Sistemas y Computación | E59: 20 | F59: 32 | G59: 22 | H59: 1 | I59: 4 | J59: 2 | K59: 81 | L59: 26 | M59: 39 | N59: 18 | O59: 4 | P59: 0 | Q59: 0 | R59: 87
C60: 37 | D60: Ingeniería de Sistemas y Computación (Nocturno) | E60: 2 | F60: 27 | G60: 23 | H60: 20 | I60: 3 | J60: 3 | K60: 78 | L60: 13 | M60: 24 | N60: 15 | O60: 11 | P60: 5 | Q60: 1 | R60: 69
C61: 12 | D61: Ingeniería Eléctrica | E61: 16 | F61: 38 | G61: 19 | H61: 6 | I61: 3 | J61: 0 | K61: 82 | L61: 25 | M61: 32 | N61: 19 | O61: 7 | P61: 0 | Q61: 0 | R61: 83
C62: 36 | D62: Ingeniería Electrónica (Nocturno) | E62: 9 | F62: 16 | G62: 15 | H62: 13 | I62: 3 | J62: 0 | K62: 56 | L62: 7 | M62: 19 | N62: 20 | O62: 6 | P62: 0 | Q62: 0 | R62: 52
C63: 34 | D63: Ingeniería Física | E63: 16 | F63: 42 | G63: 16 | H63: 8 | I63: 1 | J63: 0 | K63: 83 | L63: 0 | M63: 0 | N63: 0 | O63: 0 | P63: 0 | Q63: 0 | R63: 0
B64: Tecnologías | C64: 53 | D64: Administración Industrial | E64: 3 | F64: 10 | G64: 6 | H64: 4 | I64: 0 | J64: 0 | K64: 23 | L64: 5 | M64: 7 | N64: 6 | O64: 3 | P64: 1 | Q64: 0 | R64: 22
C65: 89 | D65: Ingeniería en Mecatrónica (por ciclos propedéuticos) | E65: 0 | F65: 7 | G65: 6 | H65: 2 | I65: 1 | J65: 0 | K65: 16 | L65: 0 | M65: 0 | N65: 0 | O65: 0 | P65: 0 | Q65: 0 | R65: 0
C66: 16 | D66: Química Industrial | K66: 0 | L66: 16 | M66: 29 | N66: 30 | O66: 8 | P66: 0 | Q66: 0 | R66: 83
C67: 86 | D67: Técnico Profesional en Mecatrónica (por ciclos propedéuticos) | E67: 4 | F67: 23 | G67: 21 | H67: 22 | I67: 11 | J67: 0 | K67: 81 | L67: 7 | M67: 24 | N67: 24 | O67: 11 | P67: 1 | Q67: 1 | R67: 68
C68: 22 | D68: Tecnología Eléctrica | E68: 29 | F68: 27 | G68: 23 | H68: 3 | I68: 0 | J68: 0 | K68: 82 | L68: 20 | M68: 50 | N68: 14 | O68: 2 | P68: 0 | Q68: 0 | R68: 86
C69: 23 | D69: Tecnología Industrial | E69: 29 | F69: 32 | G69: 16 | H69: 5 | I69: 1 | J69: 0 | K69: 83 | L69: 19 | M69: 33 | N69: 30 | O69: 5 | P69: 0 | Q69: 0 | R69: 87
C70: BN | D70: Tecnología Industrial (CERES Belén de Umbría - Risaralda) | K70: 0 | L70: 5 | M70: 24 | N70: 0 | O70: 1 | P70: 0 | Q70: 0 | R70: 30
C71: 24 | D71: Tecnología Mecánica | E71: 20 | F71: 38 | G71: 19 | H71: 4 | I71: 0 | J71: 0 | K71: 81 | L71: 15 | M71: 40 | N71: 17 | O71: 10 | P71: 1 | Q71: 0 | R71: 83
C72: 25 | D72: Tecnología Química | E72: 11 | F72: 47 | G72: 17 | H72: 7 | I72: 2 | J72: 1 | K72: 85 | L72: 0 | M72: 0 | N72: 0 | O72: 0 | P72: 0 | Q72: 0 | R72: 0
B73: TOTAL | E73: 464 | F73: 948 | G73: 467 | H73: 231 | I73: 49 | J73: 20 | K73: 2179 | L73: 438 | M73: 754 | N73: 453 | O73: 161 | P73: 26 | Q73: 8 | R73: 1840
B75: Fuente: Base de datos del centro de registro y control académico

Sheet Colegio
A1: BOLETÍN ESTADÍSTICO 2011 ESTUDIANTES DE PREGRADO MATRICULADOS POR PRIMERA VEZ POR TIPO DE COLEGIO
B10: Seleccione un programa académico de Pregrado
F11: 10 | G11: =VLOOKUP(F11,CONVENCIONES!A33:B66,2,FALSE) -> Ingeniería Industrial
D28: SEMESTRE I | E28: =VLOOKUP($G$11,$D$36:$J$69,2,FALSE) -> 58 | F28: =VLOOKUP($G$11,$D$36:$J$69,3,FALSE) -> 28
D29: SEMESTRE II | E29: =VLOOKUP($G$11,$D$36:$J$69,5,FALSE) -> 59 | F29: =VLOOKUP($G$11,$D$36:$J$69,6,FALSE) -> 27
B34: FACULTAD | C34: COD | D34: PROGRAMA | E34: I SEMESTRE | H34: II SEMESTRE
E35: OFICIAL | F35: PRIVADO | G35: TOTAL | H35: OFICIAL | I35: PRIVADO | J35: TOTAL
B36: Facultad de Bellas Artes y Humanidades | C36: 1 | D36: Licenciatura en Música | E36: 64 | F36: 21 | G36: 85 | H36: 0 | I36: 0 | J36: 0
C37: 4 | D37: Licenciatura en Artes Visuales | E37: 54 | F37: 13 | G37: 67 | H37: 0 | I37: 0 | J37: 0
C38: 66 | D38: Licenciatura en Filosofía (Nocturno) | E38: 32 | F38: 9 | G38: 41 | H38: 0 | I38: 0 | J38: 0
C39: 68 | D39: Licenciatura en Lengua Inglesa | E39: 72 | F39: 6 | G39: 78 | H39: 69 | I39: 16 | J39: 85
B40: Facultad de Ciencias Ambientales | C40: 27 | D40: Administración del Medio Ambiente | E40: 69 | F40: 13 | G40: 82 | H40: 64 | I40: 17 | J40: 81
C41: AG | D41: Técnico Profesional en Procesos del Turismo Sostenible (por ciclos propedéuticos) | E41: 78 | F41: 12 | G41: 90 | H41: 64 | I41: 22 | J41: 86
B42: Facultad de Ciencias Básicas | C42: 7 | D42: Licenciatura en Matemáticas y Física | E42: 50 | F42: 6 | G42: 56 | H42: 0 | I42: 0 | J42: 0
B43: Facultad de Ciencias de la Educación | C43: 6 | D43: Licenciatura en Comunicación e Informática Educativa | E43: 71 | F43: 10 | G43: 81 | H43: 68 | I43: 11 | J43: 79
C44: 9 | D44: Licenciatura en Español y Literatura (Nocturno) | E44: 59 | F44: 8 | G44: 67 | H44: 60 | I44: 5 | J44: 65
C45: 21 | D45: Licenciatura en Etnoeducación y Desarrollo Comunitario | E45: 54 | F45: 3 | G45: 57 | H45: 0 | I45: 0 | J45: 0
C46: 33 | D46: Licenciatura en Pedagogía Infantil | E46: 97 | F46: 11 | G46: 108 | H46: 101 | I46: 11 | J46: 112
C47: 80 | D47: Licenciatura en Pedagogía Infantil (CERES Quinchía - Risaralda) | E47: 26 | F47: 6 | G47: 32 | H47: 0 | I47: 0 | J47: 0
C48: DY | D48: Licenciatura en Pedagogía Infantil (CERES Puerto Caldas (Pereira) - Risaralda) * | E48: 0 | F48: 0 | G48: 0 | H48: 62 | I48: 20 | J48: 82
B49: Facultad de Ciencias de la Salud | C49: 31 | D49: Medicina | E49: 43 | F49: 19 | G49: 62 | H49: 40 | I49: 24 | J49: 64
C50: 32 | D50: Ciencias del Deporte y la Recreación | E50: 80 | F50: 6 | G50: 86 | H50: 68 | I50: 15 | J50: 83
C51: 92 | D51: Medicina Veterinaria y Zootecnia | E51: 32 | F51: 16 | G51: 48 | H51: 26 | I51: 20 | J51: 46
C52: 99 | D52: Tecnología en Atención Prehospitalaria | E52: 38 | F52: 4 | G52: 42 | H52: 26 | I52: 8 | J52: 34
B53: Facultad de Ingeniería Industrial | C53: 13 | D53: Ingeniería Industrial | E53: 58 | F53: 28 | G53: 86 | H53: 59 | I53: 27 | J53: 86
C54: 38 | D54: Ingeniería Industrial (Nocturno) | E54: 73 | F54: 26 | G54: 99 | H54: 76 | I54: 26 | J54: 102
B55: Facultad de Ingeniería Mecánica | C55: 14 | D55: Ingeniería Mecánica | E55: 58 | F55: 23 | G55: 81 | H55: 64 | I55: 21 | J55: 85
B56: Facultad de Ingenierías Eléctrica, Electrónica, Física y Ciencias de la Computación | C56: 12 | D56: Ingeniería Eléctrica | E56: 69 | F56: 13 | G56: 82 | H56: 72 | I56: 11 | J56: 83
C57: 28 | D57: Ingeniería de Sistemas y Computación | E57: 65 | F57: 16 | G57: 81 | H57: 73 | I57: 14 | J57: 87
C58: 34 | D58: Ingeniería Física | E58: 72 | F58: 11 | G58: 83 | H58: 0 | I58: 0 | J58: 0
C59: 36 | D59: Ingeniería Electrónica (Nocturno) | E59: 40 | F59: 16 | G59: 56 | H59: 35 | I59: 17 | J59: 52
C60: 37 | D60: Ingeniería de Sistemas y Computación (Nocturno) | E60: 57 | F60: 21 | G60: 78 | H60: 60 | I60: 9 | J60: 69
B61: Facultad de Tecnología | C61: 22 | D61: Tecnología Eléctrica | E61: 71 | F61: 11 | G61: 82 | H61: 78 | I61: 8 | J61: 86
C62: 23 | D62: Tecnología Industrial | E62: 73 | F62: 10 | G62: 83 | H62: 72 | I62: 15 | J62: 87
C63: 24 | D63: Tecnología Mecánica | E63: 70 | F63: 11 | G63: 81 | H63: 69 | I63: 14 | J63: 83
C64: 25 | D64: Tecnología Química | E64: 76 | F64: 9 | G64: 85 | H64: 0 | I64: 0 | J64: 0
C65: 53 | D65: Administración Industrial | E65: 17 | F65: 6 | G65: 23 | H65: 20 | I65: 2 | J65: 22
C66: 86 | D66: Técnico Profesional en Mecatrónica (por ciclos propedéuticos) | E66: 54 | F66: 27 | G66: 81 | H66: 54 | I66: 14 | J66: 68
C67: 89 | D67: Ingeniería en Mecatrónica (por ciclos propedéuticos) | E67: 13 | F67: 3 | G67: 16 | H67: 0 | I67: 0 | J67: 0
C68: 16 | D68: Química Industrial | E68: 0 | F68: 0 | G68: 0 | H68: 67 | I68: 16 | J68: 83
C69: BN | D69: Tecnología Industrial (CERES Belén de Umbría - Risaralda) | E69: 0 | F69: 0 | G69: 0 | H69: 28 | I69: 2 | J69: 30
B70: TOTAL | E70: 1785 | F70: 394 | G70: 2179 | H70: 1475 | I70: 365 | J70: 1840
B72: Fuente: Base de datos del centro de registro y control académico

Sheet Departamento
A1: BOLETÍN ESTADÍSTICO 2011 ESTUDIANTES DE PREGRADOMATRICULADOS POR PRIMERA VEZ POR DEPARTAMENTO DE PROCEDENCIA
B10: Seleccione un Programa Académico de Pregrado
P12: 1 | Q12: =VLOOKUP(P12,CONVENCIONES!A33:B66,2,FALSE) -> Administración del Medio Ambiente
B25: SEMESTRE I | C25: =VLOOKUP($Q$12,$B$41:$AD$71,2,FALSE) -> 0 | D25: =VLOOKUP($Q$12,$B$41:$AD$71,3,FALSE) -> 0 | E25: =VLOOKUP($Q$12,$B$41:$AD$71,4,FALSE) -> 0 | F25: =VLOOKUP($Q$12,$B$41:$AD$71,5,FALSE) -> 0 | G25: =VLOOKUP($Q$12,$B$41:$AD$71,6,FALSE) -> 8 | H25: =VLOOKUP($Q$12,$B$41:$AD$71,7,FALSE) -> 0 | I25: =VLOOKUP($Q$12,$B$41:$AD$71,8,FALSE) -> 0 | J25: =VLOOKUP($Q$12,$B$41:$AD$71,9,FALSE) -> 1 | K25: =VLOOKUP($Q$12,$B$41:$AD$71,10,FALSE) -> 0 | L25: =VLOOKUP($Q$12,$B$41:$AD$71,11,FALSE) -> 0 | M25: =VLOOKUP($Q$12,$B$41:$AD$71,12,FALSE) -> 0 | N25: =VLOOKUP($Q$12,$B$41:$AD$71,13,FALSE) -> 0 | O25: =VLOOKUP($Q$12,$B$41:$AD$71,14,FALSE) -> 0 | P25: =VLOOKUP($Q$12,$B$41:$AD$71,15,FALSE) -> 0 | Q25: =VLOOKUP($Q$12,$B$41:$AD$71,16,FALSE) -> 0 | R25: =VLOOKUP($Q$12,$B$41:$AD$71,17,FALSE) -> 0 | S25: =VLOOKUP($Q$12,$B$41:$AD$71,18,FALSE) -> 2 | T25: =VLOOKUP($Q$12,$B$41:$AD$71,19,FALSE) -> 0 | U25: =VLOOKUP($Q$12,$B$41:$AD$71,20,FALSE) -> 1 | V25: =VLOOKUP($Q$12,$B$41:$AD$71,21,FALSE) -> 1 | W25: =VLOOKUP($Q$12,$B$41:$AD$71,22,FALSE) -> 60 | X25: =VLOOKUP($Q$12,$B$41:$AD$71,23,FALSE) -> 0 | Y25: =VLOOKUP($Q$12,$B$41:$AD$71,24,FALSE) -> 0 | Z25: =VLOOKUP($Q$12,$B$41:$AD$71,25,FALSE) -> 0 | AA25: =VLOOKUP($Q$12,$B$41:$AD$71,26,FALSE) -> 1 | AB25: =VLOOKUP($Q$12,$B$41:$AD$71,27,FALSE) -> 8 | AC25: =VLOOKUP($Q$12,$B$41:$AD$71,28,FALSE) -> 0
B26: SEMESTRE II | C26: =VLOOKUP($Q$12,$B$81:$AC$105,2,FALSE) -> 0 | D26: =VLOOKUP($Q$12,$B$81:$AC$105,3,FALSE) -> 0 | E26: =VLOOKUP($Q$12,$B$81:$AC$105,4,FALSE) -> 0 | F26: =VLOOKUP($Q$12,$B$81:$AC$105,5,FALSE) -> 0 | G26: =VLOOKUP($Q$12,$B$81:$AC$105,6,FALSE) -> 4 | H26: =VLOOKUP($Q$12,$B$81:$AC$105,7,FALSE) -> 0 | I26: =VLOOKUP($Q$12,$B$81:$AC$105,8,FALSE) -> 0 | J26: =VLOOKUP($Q$12,$B$81:$AC$105,9,FALSE) -> 0 | K26: =VLOOKUP($Q$12,$B$81:$AC$105,10,FALSE) -> 0 | L26: =VLOOKUP($Q$12,$B$81:$AC$105,11,FALSE) -> 0 | M26: =VLOOKUP($Q$12,$B$81:$AC$105,12,FALSE) -> 0 | N26: =VLOOKUP($Q$12,$B$81:$AC$105,13,FALSE) -> 1 | O26: =VLOOKUP($Q$12,$B$81:$AC$105,14,FALSE) -> 0 | P26: =VLOOKUP($Q$12,$B$81:$AC$105,15,FALSE) -> 0 | Q26: =VLOOKUP($Q$12,$B$81:$AC$105,16,FALSE) -> 0 | R26: =VLOOKUP($Q$12,$B$81:$AC$105,17,FALSE) -> 0 | S26: =VLOOKUP($Q$12,$B$81:$AC$105,18,FALSE) -> 1 | T26: =VLOOKUP($Q$12,$B$81:$AC$105,19,FALSE) -> 1 | U26: =VLOOKUP($Q$12,$B$81:$AC$105,20,FALSE) -> 0 | V26: =VLOOKUP($Q$12,$B$81:$AC$105,21,FALSE) -> 1 | W26: =VLOOKUP($Q$12,$B$81:$AC$105,22,FALSE) -> 63 | X26: =VLOOKUP($Q$12,$B$81:$AC$105,23,FALSE) -> 1 | Y26: =VLOOKUP($Q$12,$B$81:$AC$105,24,FALSE) -> 0 | Z26: =VLOOKUP($Q$12,$B$81:$AC$105,25,FALSE) -> 0 | AA26: =VLOOKUP($Q$12,$B$81:$AC$105,26,FALSE) -> 0 | AB26: =VLOOKUP($Q$12,$B$81:$AC$105,27,FALSE) -> 9 | AC26: =VLOOKUP($Q$12,$B$81:$AC$105,28,FALSE) -> 0
B38: MATRICULADOS POR PRIMERA EN PROGRAMAS DE PREGRADO VEZ SEGÚN DEPARTAMENTO Y PROGRAMA ACADÉMICO (2011 - I)
B40: Rótulos de fila | C40: Antioquia | D40: Arauca | E40: Bogotá D.C. | F40: Boyacá | G40: Caldas | H40: Caquetá | I40: Casanare | J40: Cauca | K40: Cesar | L40: Chocó | M40: Cundinamarca | N40: Guainía | O40: La Guajira | P40: Guaviare | Q40: Huila | R40: Meta | S40: Nariño | T40: Norte de Santander | U40: Putumayo | V40: Quindío | W40: Risaralda | X40: San Andrés | Y40: Santander | Z40: Sucre | AA40: Tolima | AB40: Valle Del Cauca | AC40: Vaupés | AD40: TOTAL
B41: Administración del Medio Ambiente | G41: 8 | J41: 1 | S41: 2 | U41: 1 | V41: 1 | W41: 60 | AA41: 1 | AB41: 8 | AD41: 82
B42: Administración Industrial | W42: 22 | AB42: 1 | AD42: 23
B43: Ciencias del Deporte y la Recreación | G43: 3 | S43: 3 | W43: 74 | AA43: 1 | AB43: 5 | AD43: 86
B44: Ingeniería de Sistemas y Computación | G44: 5 | J44: 1 | Q44: 1 | U44: 1 | W44: 68 | AB44: 5 | AD44: 81
B45: Ingeniería de Sistemas y Computación (Nocturno) | G45: 4 | Q45: 1 | S45: 1 | W45: 63 | AB45: 9 | AD45: 78
B46: Ingeniería Eléctrica | G46: 2 | H46: 1 | Q46: 1 | S46: 3 | W46: 67 | AA46: 3 | AB46: 5 | AD46: 82
B47: Ingeniería Electrónica (Nocturno) | Q47: 1 | W47: 49 | AB47: 6 | AD47: 56
B48: Ingeniería en Mecatrónica (por ciclos propedéuticos) | W48: 12 | AA48: 2 | AB48: 2 | AD48: 16
B49: Ingeniería Física | G49: 4 | S49: 1 | V49: 2 | W49: 69 | AA49: 1 | AB49: 6 | AD49: 83
B50: Ingeniería Industrial | S50: 3 | U50: 1 | V50: 5 | W50: 74 | AB50: 3 | AD50: 86
B51: Ingeniería Industrial (Nocturno) | E51: 1 | G51: 1 | S51: 1 | V51: 3 | W51: 91 | AB51: 2 | AD51: 99
B52: Ingeniería Mecánica | G52: 2 | K52: 1 | N52: 1 | O52: 1 | S52: 6 | U52: 2 | V52: 4 | W52: 54 | AB52: 10 | AD52: 81
B53: Licenciatura en Artes Visuales | E53: 1 | G53: 1 | V53: 1 | W53: 61 | AB53: 3 | AD53: 67
B54: Licenciatura en Comunicación e Informática Educativa | G54: 2 | V54: 1 | W54: 75 | AB54: 3 | AD54: 81
B55: Licenciatura en Español y Literatura (Nocturno) | W55: 66 | AB55: 1 | AD55: 67
B56: Licenciatura en Etnoeducación y Desarrollo Comunitario | G56: 1 | H56: 1 | J56: 2 | L56: 1 | M56: 2 | W56: 48 | AB56: 2 | AD56: 57
B57: Licenciatura en Filosofía (Nocturno) | U57: 1 | V57: 1 | W57: 38 | AB57: 1 | AD57: 41
B58: Licenciatura en Lengua Inglesa | E58: 1 | G58: 4 | L58: 1 | W58: 65 | AB58: 7 | AD58: 78
B59: Licenciatura en Matemáticas y Física | J59: 1 | W59: 53 | AB59: 2 | AD59: 56
B60: Licenciatura en Música | G60: 5 | M60: 1 | V60: 10 | W60: 61 | Z60: 1 | AB60: 7 | AD60: 85
B61: Licenciatura en Pedagogía Infantil | G61: 2 | S61: 3 | V61: 2 | W61: 93 | AB61: 8 | AD61: 108
B62: Licenciatura en Pedagogía Infantil (CERES Quinchía - Risaralda) | G62: 2 | W62: 30 | AD62: 32
B63: Medicina | G63: 2 | J63: 5 | P63: 1 | S63: 26 | U63: 1 | V63: 3 | W63: 20 | Y63: 1 | AB63: 3 | AD63: 62
B64: Medicina Veterinaria y Zootecnia | E64: 1 | G64: 3 | V64: 2 | W64: 37 | AB64: 5 | AD64: 48
B65: Técnico Profesional en Mecatrónica (por ciclos propedéuticos) | C65: 1 | Q65: 1 | S65: 2 | V65: 3 | W65: 63 | AB65: 10 | AC65: 1 | AD65: 81
B66: Técnico Profesional en Procesos del Turismo Sostenible (por ciclos propedéuticos) | G66: 3 | J66: 1 | W66: 82 | AB66: 4 | AD66: 90
B67: Tecnología Eléctrica | G67: 1 | I67: 1 | M67: 1 | Q67: 1 | W67: 75 | X67: 1 | AA67: 1 | AB67: 1 | AD67: 82
B68: Tecnología en Atención Prehospitalaria | G68: 1 | U68: 1 | W68: 38 | AB68: 2 | AD68: 42
B69: Tecnología Industrial | E69: 1 | G69: 4 | S69: 1 | W69: 73 | AB69: 4 | AD69: 83
B70: Tecnología Mecánica | G70: 2 | J70: 1 | S70: 1 | U70: 2 | V70: 3 | W70: 66 | AB70: 6 | AD70: 81
B71: Tecnología Química | G71: 1 | L71: 1 | S71: 2 | W71: 73 | AB71: 8 | AD71: 85
B72: TOTAL | C72: 1 | E72: 5 | G72: 63 | H72: 2 | I72: 1 | J72: 12 | K72: 1 | L72: 3 | M72: 4 | N72: 1 | O72: 1 | P72: 1 | Q72: 6 | S72: 55 | U72: 10 | V72: 41 | W72: 1820 | X72: 1 | Y72: 1 | Z72: 1 | AA72: 9 | AB72: 139 | AC72: 1 | AD72: 2179
B74: Fuente: Base de datos del centro de registro y control académico
B77: MATRICULADOS POR PRIMERA EN PROGRAMAS DE PREGRADO VEZ SEGÚN DEPARTAMENTO Y PROGRAMA ACADÉMICO (2011 - II)
B80: Rótulos de fila | C80: Antioquia | D80: Arauca | E80: Bogotá D.C. | F80: Boyaca | G80: Caldas | H80: Caqueta | I80: Casanare | J80: Cauca | K80: Cesar | L80: Chocó | M80: Cundinamarca | N80: Guainía | O80: La Guajira | P80: Guaviare | Q80: Huila | R80: Meta | S80: Nariño | T80: Norte de Santander | U80: Putumayo | V80: Quindio | W80: Risaralda | X80: San Andrés | Y80: Santander | Z80: Sucre | AA80: Tolima | AB80: Valle Del Cauca | AC80: Vaupés | AD80: TOTAL
B81: Administración del Medio Ambiente | G81: 4 | N81: 1 | S81: 1 | T81: 1 | V81: 1 | W81: 63 | X81: 1 | AB81: 9 | AD81: 81
B82: Administración Industrial | G82: 1 | W82: 20 | AB82: 1 | AD82: 22
B83: Ciencias del Deporte y la Recreación | C83: 1 | G83: 1 | H83: 1 | S83: 2 | U83: 1 | W83: 65 | AB83: 12 | AD83: 83
B84: Ingeniería de Sistemas y Computación | G84: 2 | N84: 1 | Q84: 1 | S84: 1 | W84: 73 | X84: 1 | AB84: 8 | AD84: 87
B85: Ingeniería de Sistemas y Computación (Nocturno) | W85: 66 | AB85: 3 | AD85: 69
B86: Ingeniería Eléctrica | D86: 1 | G86: 1 | M86: 1 | Q86: 1 | R86: 1 | S86: 4 | W86: 62 | AA86: 1 | AB86: 11 | AD86: 83
B87: Ingeniería Electrónica (Nocturno) | E87: 1 | G87: 1 | S87: 2 | W87: 40 | AB87: 8 | AD87: 52
B88: Ingeniería Industrial | E88: 1 | G88: 7 | H88: 1 | Q88: 1 | S88: 2 | T88: 1 | U88: 3 | V88: 2 | W88: 59 | AA88: 1 | AB88: 8 | AD88: 86
B89: Ingeniería Industrial (Nocturno) | G89: 3 | S89: 1 | T89: 1 | U89: 1 | V89: 2 | W89: 91 | AB89: 3 | AD89: 102
B90: Ingeniería Mecánica | E90: 1 | G90: 5 | H90: 1 | J90: 1 | Q90: 1 | S90: 8 | V90: 2 | W90: 50 | X90: 1 | AA90: 1 | AB90: 14 | AD90: 85
B91: Licenciatura en Comunicación e Informática Educativa | C91: 1 | E91: 1 | F91: 1 | G91: 1 | J91: 1 | W91: 73 | AB91: 1 | AD91: 79
B92: Licenciatura en Español y Literatura (Nocturno) | G92: 3 | W92: 55 | AB92: 7 | AD92: 65
B93: Licenciatura en Lengua Inglesa | G93: 5 | S93: 2 | U93: 1 | V93: 1 | W93: 67 | X93: 1 | AA93: 1 | AB93: 7 | AD93: 85
B94: Licenciatura en Pedagogía Infantil | G94: 5 | J94: 1 | L94: 2 | U94: 1 | V94: 2 | W94: 93 | AB94: 8 | AD94: 112
B95: Licenciatura en Pedagogía Infantil (CERES Puerto Caldas (Pereira) - Risaralda) * | W95: 82 | AD95: 82
B96: Medicina | F96: 1 | G96: 7 | J96: 1 | O96: 1 | Q96: 1 | S96: 12 | T96: 1 | U96: 2 | W96: 29 | AA96: 2 | AB96: 7 | AD96: 64
B97: Medicina Veterinaria y Zootecnia | G97: 4 | S97: 1 | V97: 1 | W97: 26 | AB97: 14 | AD97: 46
B98: Química Industrial | E98: 2 | G98: 2 | H98: 1 | J98: 1 | Q98: 1 | S98: 2 | U98: 1 | V98: 1 | W98: 61 | AB98: 11 | AD98: 83
B99: Técnico Profesional en Mecatrónica (por ciclos propedéuticos) | E99: 1 | G99: 3 | Q99: 1 | R99: 1 | S99: 4 | U99: 1 | V99: 1 | W99: 43 | AB99: 13 | AD99: 68
B100: Técnico Profesional en Procesos del Turismo Sostenible (por ciclos propedéuticos) | E100: 1 | G100: 3 | W100: 78 | X100: 1 | AB100: 3 | AD100: 86
B101: Tecnología Eléctrica | G101: 1 | J101: 1 | Q101: 1 | V101: 1 | W101: 74 | AB101: 8 | AD101: 86
B102: Tecnología en Atención Prehospitalaria | G102: 1 | M102: 2 | V102: 1 | W102: 28 | AB102: 2 | AD102: 34
B103: Tecnología Industrial | G103: 1 | W103: 81 | AB103: 5 | AD103: 87
B104: Tecnología Industrial (CERES Belén de Umbría - Risaralda) | W104: 30 | AD104: 30
B105: Tecnología Mecánica | G105: 3 | S105: 2 | V105: 1 | W105: 71 | X105: 1 | AB105: 5 | AD105: 83
B106: TOTAL | C106: 2 | D106: 1 | E106: 8 | F106: 2 | G106: 64 | H106: 4 | J106: 6 | L106: 2 | M106: 3 | N106: 2 | O106: 1 | Q106: 8 | R106: 2 | S106: 44 | T106: 4 | U106: 11 | V106: 16 | W106: 1480 | X106: 6 | AA106: 6 | AB106: 168 | AD106: 1840
B108: Fuente: Base de datos del centro de registro y control académico

Sheet Municipio
A1: BOLETÍN ESTADÍSTICO 2011 ESTUDIANTES DE PREGRADO MATRICULADOS POR PRIMERA VEZ POR MUNICIPIO DE PROCEDENCIA
B11: Seleccione un programa académico de Pregrado
H13: 1 | I13: =VLOOKUP(H13,CONVENCIONES!A33:B66,2,FALSE) -> Administración del Medio Ambiente
D34: SEMESTRE I | E34: =VLOOKUP($I$13,$D$43:$R$73,2,FALSE) -> 0 | F34: =VLOOKUP($I$13,$D$43:$R$73,3,FALSE) -> 1 | G34: =VLOOKUP($I$13,$D$43:$R$73,4,FALSE) -> 0 | H34: =VLOOKUP($I$13,$D$43:$R$73,5,FALSE) -> 17 | I34: =VLOOKUP($I$13,$D$43:$R$73,6,FALSE) -> 2 | J34: =VLOOKUP($I$13,$D$43:$R$73,7,FALSE) -> 0 | K34: =VLOOKUP($I$13,$D$43:$R$73,8,FALSE) -> 1 | L34: =VLOOKUP($I$13,$D$43:$R$73,9,FALSE) -> 0 | M34: =VLOOKUP($I$13,$D$43:$R$73,10,FALSE) -> 1 | N34: =VLOOKUP($I$13,$D$43:$R$73,11,FALSE) -> 29 | O34: =VLOOKUP($I$13,$D$43:$R$73,12,FALSE) -> 1 | P34: =VLOOKUP($I$13,$D$43:$R$73,13,FALSE) -> 1 | Q34: =VLOOKUP($I$13,$D$43:$R$73,14,FALSE) -> 6 | R34: =VLOOKUP($I$13,$D$43:$R$73,15,FALSE) -> 1
D35: SEMESTRE II | E35: =VLOOKUP($I$13,$D$82:$R$106,2,FALSE) -> 0 | F35: =VLOOKUP($I$13,$D$82:$R$106,3,FALSE) -> 0 | G35: =VLOOKUP($I$13,$D$82:$R$106,4,FALSE) -> 1 | H35: =VLOOKUP($I$13,$D$82:$R$106,5,FALSE) -> 16 | I35: =VLOOKUP($I$13,$D$82:$R$106,6,FALSE) -> 1 | J35: =VLOOKUP($I$13,$D$82:$R$106,7,FALSE) -> 0 | K35: =VLOOKUP($I$13,$D$82:$R$106,8,FALSE) -> 1 | L35: =VLOOKUP($I$13,$D$82:$R$106,9,FALSE) -> 3 | M35: =VLOOKUP($I$13,$D$82:$R$106,10,FALSE) -> 1 | N35: =VLOOKUP($I$13,$D$82:$R$106,11,FALSE) -> 34 | O35: =VLOOKUP($I$13,$D$82:$R$106,12,FALSE) -> 0 | P35: =VLOOKUP($I$13,$D$82:$R$106,13,FALSE) -> 1 | Q35: =VLOOKUP($I$13,$D$82:$R$106,14,FALSE) -> 3 | R35: =VLOOKUP($I$13,$D$82:$R$106,15,FALSE) -> 2
B39: MATRICULADOS POR PRIMERA VEZ SEGÚN MUNICIPIOS DE RISARALDA Y PROGRAMAS ACADÉMICOS (2011 - I)
B42: FACULTAD | C42: CODIGO | D42: PROGRAMA ACADÉMICO | E42: Apia | F42: Balboa | G42: Belen De Umbria | H42: Dosquebradas | I42: Guatica | J42: La Celia | K42: La Virginia | L42: Marsella | M42: Mistrato | N42: Pereira | O42: Pueblo Rico | P42: Quinchia | Q42: Santa Rosa De Cabal | R42: Santuario | S42: Total
B43: Facultad de Bellas Artes y Humanidades | C43: 1 | D43: Licenciatura en Música | E43: 1 | G43: 1 | H43: 10 | K43: 1 | N43: 39 | O43: 1 | Q43: 8 | S43: 61
C44: 4 | D44: Licenciatura en Artes Visuales | G44: 1 | H44: 8 | K44: 1 | L44: 1 | N44: 35 | P44: 2 | Q44: 12 | R44: 1 | S44: 61
C45: 66 | D45: Licenciatura en Filosofía (Nocturno) | G45: 1 | H45: 10 | N45: 25 | P45: 1 | Q45: 1 | S45: 38
C46: 68 | D46: Licenciatura en Lengua Inglesa | H46: 19 | I46: 2 | K46: 3 | L46: 1 | N46: 32 | P46: 1 | Q46: 6 | R46: 1 | S46: 65
B47: Facultad de Ciencias Ambientales | C47: 27 | D47: Administración del Medio Ambiente | F47: 1 | H47: 17 | I47: 2 | K47: 1 | M47: 1 | N47: 29 | O47: 1 | P47: 1 | Q47: 6 | R47: 1 | S47: 60
C48: AG | D48: Técnico Profesional en Procesos del Turismo Sostenible (por ciclos propedéuticos) | H48: 21 | N48: 58 | P48: 1 | Q48: 2 | S48: 82
B49: Facultad de Ciencias Básicas | C49: 7 | D49: Licenciatura en Matemáticas y Física | H49: 12 | I49: 1 | K49: 3 | N49: 36 | P49: 1 | S49: 53
B50: Facultad de Ciencias de la Educación | C50: 6 | D50: Licenciatura en Comunicación e Informática Educativa | G50: 2 | H50: 23 | I50: 1 | J50: 1 | K50: 3 | N50: 35 | P50: 1 | Q50: 9 | S50: 75
C51: 9 | D51: Licenciatura en Español y Literatura (Nocturno) | H51: 9 | K51: 1 | N51: 49 | Q51: 7 | S51: 66
C52: 21 | D52: Licenciatura en Etnoeducación y Desarrollo Comunitario | H52: 9 | I52: 1 | N52: 35 | P52: 1 | Q52: 2 | S52: 48
C53: 33 | D53: Licenciatura en Pedagogía Infantil | E53: 1 | F53: 1 | G53: 1 | H53: 23 | K53: 5 | L53: 1 | N53: 53 | Q53: 7 | R53: 1 | S53: 93
C54: 80 | D54: Licenciatura en Pedagogía Infantil (CERES Quinchía - Risaralda) | P54: 30 | S54: 30
B55: Facultad de Ciencias de la Salud | C55: 31 | D55: Medicina | E55: 1 | F55: 1 | G55: 1 | H55: 2 | I55: 1 | J55: 1 | K55: 1 | L55: 1 | M55: 1 | N55: 6 | O55: 1 | P55: 1 | Q55: 1 | R55: 1 | S55: 20
C56: 32 | D56: Ciencias del Deporte y la Recreación | E56: 1 | G56: 2 | H56: 9 | K56: 3 | N56: 48 | O56: 1 | P56: 1 | Q56: 6 | R56: 3 | S56: 74
C57: 92 | D57: Medicina Veterinaria y Zootecnia | G57: 1 | H57: 4 | J57: 1 | K57: 1 | M57: 2 | N57: 27 | Q57: 1 | S57: 37
C58: 99 | D58: Tecnología en Atención Prehospitalaria | E58: 1 | H58: 12 | K58: 4 | N58: 21 | S58: 38
B59: Facultad de Ingeniería Industrial | C59: 13 | D59: Ingeniería Industrial | E59: 1 | G59: 1 | H59: 18 | I59: 1 | J59: 1 | K59: 1 | L59: 2 | M59: 1 | N59: 43 | Q59: 4 | R59: 1 | S59: 74
C60: 38 | D60: Ingeniería Industrial (Nocturno) | H60: 25 | N60: 64 | Q60: 2 | S60: 91
B61: Facultad de Ingeniería Mecánica | C61: 14 | D61: Ingeniería Mecánica | F61: 2 | G61: 1 | H61: 10 | K61: 3 | L61: 1 | M61: 1 | N61: 30 | P61: 4 | Q61: 1 | R61: 1 | S61: 54
B62: Facultad de Ingenierías Eléctrica, Electrónica, Física y Ciencias de la Computación | C62: 12 | D62: Ingeniería Eléctrica | E62: 2 | H62: 18 | I62: 2 | K62: 1 | N62: 38 | P62: 2 | Q62: 2 | R62: 2 | S62: 67
C63: 28 | D63: Ingeniería de Sistemas y Computación | E63: 3 | H63: 13 | K63: 1 | L63: 4 | M63: 1 | N63: 35 | P63: 2 | Q63: 8 | R63: 1 | S63: 68
C64: 34 | D64: Ingeniería Física | G64: 1 | H64: 15 | I64: 2 | K64: 1 | N64: 45 | P64: 1 | Q64: 3 | R64: 1 | S64: 69
C65: 36 | D65: Ingeniería Electrónica (Nocturno) | H65: 11 | K65: 1 | N65: 33 | Q65: 4 | S65: 49
C66: 37 | D66: Ingeniería de Sistemas y Computación (Nocturno) | H66: 23 | N66: 40 | S66: 63
B67: Facultad de Tecnología | C67: 22 | D67: Tecnología Eléctrica | H67: 14 | L67: 2 | N67: 58 | Q67: 1 | S67: 75
C68: 23 | D68: Tecnología Industrial | E68: 1 | F68: 1 | G68: 2 | H68: 13 | J68: 1 | K68: 8 | L68: 1 | N68: 35 | P68: 2 | Q68: 7 | R68: 2 | S68: 73
C69: 24 | D69: Tecnología Mecánica | G69: 1 | H69: 10 | K69: 4 | L69: 1 | N69: 44 | O69: 1 | Q69: 5 | S69: 66
C70: 25 | D70: Tecnología Química | E70: 1 | H70: 18 | I70: 1 | K70: 2 | M70: 2 | N70: 41 | P70: 1 | Q70: 7 | S70: 73
C71: 53 | D71: Administración Industrial | E71: 1 | H71: 5 | N71: 16 | S71: 22
C72: 86 | D72: Técnico Profesional en Mecatrónica (por ciclos propedéuticos) | E72: 1 | H72: 16 | K72: 4 | N72: 39 | P72: 1 | Q72: 2 | S72: 63
C73: 89 | D73: Ingeniería en Mecatrónica (por ciclos propedéuticos) | H73: 5 | N73: 6 | Q73: 1 | S73: 12
B74: TOTAL | E74: 15 | F74: 6 | G74: 16 | H74: 402 | I74: 14 | J74: 5 | K74: 53 | L74: 15 | M74: 9 | N74: 1095 | O74: 5 | P74: 54 | Q74: 115 | R74: 16 | S74: 1820
B76: Fuente: Base de datos del centro de registro y control académico
B79: MATRICULADOS POR PRIMERA VEZ SEGÚN MUNICIPIOS DE RISARALDA Y PROGRAMAS ACADÉMICOS (2011 - II)
B81: FACULTAD | C81: CODIGO | D81: PROGRAMA ACADÉMICO | E81: Apia | F81: Balboa | G81: Belen De Umbria | H81: Dosquebradas | I81: Guatica | J81: La Celia | K81: La Virginia | L81: Marsella | M81: Mistrato | N81: Pereira | O81: Pueblo Rico | P81: Quinchia | Q81: Santa Rosa De Cabal | R81: Santuario | S81: Total
B82: Facultad de Bellas Artes y Humanidades | C82: 68 | D82: Licenciatura en Lengua Inglesa | G82: 1 | H82: 18 | J82: 1 | K82: 3 | L82: 1 | M82: 1 | N82: 35 | O82: 1 | P82: 1 | Q82: 3 | R82: 2 | S82: 67
B83: Facultad de Ciencias Ambientales | C83: 27 | D83: Administración del Medio Ambiente | G83: 1 | H83: 16 | I83: 1 | K83: 1 | L83: 3 | M83: 1 | N83: 34 | P83: 1 | Q83: 3 | R83: 2 | S83: 63
C84: AG | D84: Técnico Profesional en Procesos del Turismo Sostenible (por ciclos propedéuticos) | H84: 17 | K84: 1 | N84: 58 | Q84: 2 | S84: 78
B85: Facultad de Ciencias de la Educación | C85: 6 | D85: Licenciatura en Comunicación e Informática Educativa | F85: 1 | G85: 1 | H85: 19 | K85: 4 | M85: 1 | N85: 41 | P85: 1 | Q85: 5 | S85: 73
C86: 9 | D86: Licenciatura en Español y Literatura (Nocturno) | H86: 8 | K86: 1 | L86: 1 | N86: 36 | P86: 1 | Q86: 8 | S86: 55
C87: 33 | D87: Licenciatura en Pedagogía Infantil | G87: 1 | H87: 23 | I87: 1 | J87: 1 | K87: 5 | N87: 56 | P87: 1 | Q87: 5 | S87: 93
C88: DY | D88: Licenciatura en Pedagogía Infantil (CERES Puerto Caldas (Pereira) - Risaralda) * | F88: 1 | N88: 80 | Q88: 1 | S88: 82
B89: Facultad de Ciencias de la Salud | C89: 31 | D89: Medicina | E89: 1 | F89: 1 | G89: 1 | H89: 4 | I89: 1 | J89: 1 | K89: 2 | L89: 1 | M89: 1 | N89: 12 | O89: 1 | P89: 1 | Q89: 1 | R89: 1 | S89: 29
C90: 32 | D90: Ciencias del Deporte y la Recreación | E90: 1 | G90: 1 | H90: 16 | I90: 1 | K90: 4 | M90: 1 | N90: 34 | P90: 2 | Q90: 4 | R90: 1 | S90: 65
C91: 92 | D91: Medicina Veterinaria y Zootecnia | H91: 3 | K91: 1 | L91: 1 | N91: 19 | P91: 1 | Q91: 1 | S91: 26
C92: 99 | D92: Tecnología en Atención Prehospitalaria | H92: 8 | I92: 1 | J92: 1 | N92: 15 | Q92: 3 | S92: 28
B93: Facultad de Ingeniería Industrial | C93: 13 | D93: Ingeniería Industrial | H93: 16 | I93: 2 | K93: 1 | L93: 1 | N93: 35 | Q93: 3 | R93: 1 | S93: 59
C94: 38 | D94: Ingeniería Industrial (Nocturno) | E94: 1 | H94: 26 | K94: 2 | L94: 1 | N94: 57 | Q94: 4 | S94: 91
B95: Facultad de Ingeniería Mecánica | C95: 14 | D95: Ingeniería Mecánica | E95: 2 | G95: 1 | H95: 12 | I95: 1 | K95: 6 | L95: 1 | N95: 20 | P95: 2 | Q95: 5 | S95: 50
B96: Facultad de Ingenierías Eléctrica, Electrónica, Física y Ciencias de la Computación | C96: 12 | D96: Ingeniería Eléctrica | E96: 1 | G96: 1 | H96: 21 | K96: 1 | N96: 28 | P96: 1 | Q96: 9 | S96: 62
C97: 28 | D97: Ingeniería de Sistemas y Computación | E97: 1 | G97: 2 | H97: 21 | I97: 1 | K97: 1 | N97: 42 | P97: 2 | Q97: 3 | S97: 73
C98: 36 | D98: Ingeniería Electrónica (Nocturno) | G98: 1 | H98: 21 | K98: 2 | N98: 15 | Q98: 1 | S98: 40
C99: 37 | D99: Ingeniería de Sistemas y Computación (Nocturno) | H99: 21 | K99: 1 | N99: 42 | P99: 1 | Q99: 1 | S99: 66
B100: Facultad de Tecnología | C100: 16 | D100: Química Industrial | E100: 1 | H100: 16 | I100: 1 | K100: 3 | M100: 1 | N100: 33 | Q100: 6 | S100: 61
C101: 22 | D101: Tecnología Eléctrica | H101: 16 | K101: 2 | L101: 2 | N101: 48 | Q101: 6 | S101: 74
C102: 23 | D102: Tecnología Industrial | E102: 2 | F102: 1 | H102: 19 | I102: 1 | K102: 1 | M102: 1 | N102: 40 | P102: 2 | Q102: 13 | R102: 1 | S102: 81
C103: 24 | D103: Tecnología Mecánica | G103: 1 | H103: 21 | K103: 5 | L103: 1 | N103: 34 | Q103: 9 | S103: 71
C104: 53 | D104: Administración Industrial | H104: 4 | N104: 16 | S104: 20
C105: 86 | D105: Técnico Profesional en Mecatrónica (por ciclos propedéuticos) | G105: 1 | H105: 16 | N105: 26 | S105: 43
C106: BN | D106: Tecnología Industrial (CERES Belén de Umbría - Risaralda) | G106: 28 | N106: 2 | S106: 30
B107: TOTAL | E107: 10 | F107: 4 | G107: 41 | H107: 362 | I107: 11 | J107: 4 | K107: 47 | L107: 13 | M107: 7 | N107: 858 | O107: 2 | P107: 17 | Q107: 96 | R107: 8 | S107: 1480
B109: Fuente: Base de datos del centro de registro y control académico

Sheet Región
A1: BOLETÍN ESTADÍSTICO 2011 ESTUDIANTES DE PREGRADO MATRICULADOS POR PRIMERA VEZ SEGÚN SU REGIÓN DE PROCEDENCIA
K14: =CONCATENATE("Matriculados en primer semestre ",F16) -> Matriculados en primer semestre Risaralda
F16: Risaralda
J29: SEMESTRE I | K29: =VLOOKUP(F16,K56:M61,2,FALSE) -> 1820
J30: SEMESTRE II | K30: =VLOOKUP(F16,K56:M61,3,FALSE) -> 1480
B39: Risaralda
B51: CUADRO COMPARATIVO DE LA DEMANDA Y MATRICULA A NIVEL DEPARTAMENTAL PRIMER SEMESTRE DEL 2011 | K51: RESUMEN MATRICULADOS POR REGIÓN DE PROCEDENCIA 2011
B55: REGIÓN | C55: DEPARTAMENTO | D55: INSCRITOS** | G55: MATRICULADOS | K55: REGIÓN | L55: I SEMESTRE | M55: II SEMESTRE | N55: TOTAL | O55: % PARTICIPACION
D56: Nº | E56: TOTAL | F56: % | G56: Nº | H56: TOTAL | I56: % | K56: Amazonia | L56: 12 | M56: 15 | N56: =SUM(L56:M56) -> 27 | O56: =N56/$N$62 -> 0.006718089077
B57: Amazonia | C57: Caquetá | D57: 18 | E57: 71 | F57: 0.01212224688 | G57: 2 | H57: 12 | I57: =H57/$H$84 -> 0.005507113355 | K57: Centro-Oriente | L57: 25 | M57: 31 | N57: 56 | O57: 0.01393381438
C58: Putumayo | D58: 53 | G58: 10 | K58: Costa Atlántica | L58: 4 | M58: 7 | N58: 11 | O58: 0.002736999254
B59: Centro-Oriente | C59: Bogotá D.C. | D59: 28 | E59: 143 | F59: 0.02441522964 | G59: 5 | H59: 25 | I59: =H59/$H$84 -> 0.01147315282 | K59: Occidente | L59: 314 | M59: 302 | N59: 616 | O59: 0.1532719582
C60: Boyacá | D60: 4 | K60: Orinoquía | L60: 4 | M60: 5 | N60: 9 | O60: 0.002239363026
C61: Cundinamarca | D61: 10 | G61: 4 | K61: Risaralda | L61: 1820 | M61: 1480 | N61: 3300 | O61: 0.8210997761
C62: Huila | D62: 40 | G62: 6 | K62: TOTAL | L62: =SUM(L56:L61) -> 2179 | M62: =SUM(M56:M61) -> 1840 | N62: =SUM(N56:N61) -> 4019 | O62: =SUM(O56:O61) -> 1
C63: Norte De Santander | D63: 7
C64: Santander | D64: 4 | G64: 1 | K64: Fuente: Base de datos del centro de registro y control académico
C65: Tolima | D65: 50 | G65: 9 | K65: * La clasificación de las regiones se tomó del http://www.dssa.gov.co/
B66: Costa Atlántica | C66: Cesar | D66: 4 | E66: 13 | F66: 0.002219566331 | G66: 1 | H66: 4 | I66: =H66/$H$84 -> 0.001835704452
C67: La Guajira | D67: 2 | G67: 1
C68: San Andrés y Providencia | D68: 6 | G68: 1
C69: Sucre | D69: 1 | G69: 1
B70: Occidente | C70: Antioquia | D70: 11 | E70: 1307 | F70: 0.2231517842 | G70: 1 | H70: 314 | I70: =H70/$H$84 -> 0.1441027994
C71: Caldas | D71: 253 | G71: 63
C72: Cauca | D72: 68 | G72: 12
C73: Chocó | D73: 15 | G73: 3
C74: Nariño | D74: 295 | G74: 55
C75: Quindío | D75: 147 | G75: 41
C76: Valle Del Cauca | D76: 518 | G76: 139
B77: Orinoquía | C77: Arauca | E77: 15 | F77: 0.002561038074 | H77: 4 | I77: =H77/$H$84 -> 0.001835704452
C78: Casanare | D78: 1 | G78: 1
C79: Guainía | D79: 2 | G79: 1
C80: Guaviare | D80: 2 | G80: 1
C81: Meta | D81: 9
C82: Vaupés | D82: 1 | G82: 1
B83: Risaralda | C83: Risaralda | D83: 4308 | E83: 4308 | F83: 0.7355301349 | G83: 1820 | H83: 1820 | I83: =H83/$H$84 -> 0.8352455255
B84: Total | D84: 5857 | E84: 5857 | F84: 1 | G84: 2179 | H84: 2179 | I84: =H84/$H$84 -> 1
B86: Fuente: Base de datos del centro de registro y control académico
B87: * La clasificación de las regiones se tomó del http://www.dssa.gov.co/
B88: ** El número de inscritos en esta sección corresponde a aquellos provenientes de departamentos en los que hubo matriculados
B91: CUADRO COMPARATIVO DE LA DEMANDA Y MATRICULA A NIVEL DEPARTAMENTAL SEGUNDO SEMESTRE DEL 2011
B95: REGIÓN | C95: DEPARTAMENTO | D95: INSCRITOS** | G95: MATRICULADOS
D96: Nº | E96: TOTAL | F96: % | G96: Nº | H96: TOTAL | I96: %
B97: Amazonia | C97: Caquetá | D97: 13 | E97: =SUM(D97:D98) -> 57 | F97: =E97/$E$124 -> 0.01407059985 | G97: 4 | H97: 15 | I97: =H97/$H$124 -> 0.008152173913
C98: Putumayo | D98: 44 | G98: 11
B99: Centro-Oriente | C99: Bogotá D.C. | D99: 20 | E99: =SUM(D99:D105) -> 109 | F99: =E99/$E$124 -> 0.02690693656 | G99: 8 | H99: 31 | I99: =H99/$H$124 -> 0.01684782609
C100: Boyacá | D100: 7 | G100: 2
C101: Cundinamarca | D101: 7 | G101: 3
C102: Huila | D102: 30 | G102: 8
C103: Norte De Santander | D103: 7 | G103: 4
C104: Santander | D104: 4
C105: Tolima | D105: 34 | G105: 6
B106: Costa Atlántica | C106: Cesar | D106: 1 | E106: =SUM(D106:D109) -> 15 | F106: =E106/$E$124 -> 0.003702789435 | H106: 7 | I106: =H106/$H$124 -> 0.003804347826
C107: La Guajira | D107: 3 | G107: 1
C108: San Andrés y Providencia | D108: 11 | G108: 6
C109: Sucre
B110: Occidente | C110: Antioquia | D110: 14 | E110: =SUM(D110:D116) -> 995 | F110: =E110/$E$124 -> 0.2456183658 | G110: 2 | H110: 302 | I110: =H110/$H$124 -> 0.1641304348
C111: Caldas | D111: 168 | G111: 64
C112: Cauca | D112: 60 | G112: 6
C113: Chocó | D113: 17 | G113: 2
C114: Nariño | D114: 221 | G114: 44
C115: Quindío | D115: 70 | G115: 16
C116: Valle Del Cauca | D116: 445 | G116: 168
B117: Orinoquía | C117: Arauca | D117: 1 | E117: =SUM(D117:D122) -> 9 | F117: =E117/$E$124 -> 0.002221673661 | G117: 1 | H117: 5 | I117: =H117/$H$124 -> 0.002717391304
C118: Casanare | D118: 1
C119: Guainía | D119: 2 | G119: 2
C120: Guaviare
C121: Meta | D121: 4 | G121: 2
C122: Vaupés | D122: 1
B123: Risaralda | C123: Risaralda | D123: 2866 | E123: =D123 -> 2866 | F123: =E123/$E$124 -> 0.7074796347 | G123: 1480 | H123: 1480 | I123: =H123/$H$124 -> 0.8043478261
D124: =SUM(D97:D123) -> 4051 | E124: =SUM(E97:E123) -> 4051 | F124: =E124/$E$124 -> 1 | G124: 1840 | H124: =SUM(H97:H123) -> 1840 | I124: =H124/H124 -> 1
B126: Fuente: Base de datos del centro de registro y control académico
B127: * La clasificación de las regiones se tomo del http://www.dssa.gov.co/
B128: ** El número de inscritos en esta sección corresponde a aquellos provenientes de departamentos en los que hubo matriculados

Sheet Excepcion
A1: BOLETÍN ESTADÍSTICO 2011 MATRICULADOS POR PRIMERA VEZ SEGÚN MECANISMOS DE EXCEPCIÓN
B10: MATRICULADOS POR PRIMERA VEZ SEGÚN MECANISMOS DE EXCEPCIÓN 2011
B12: FACULTAD | C12: COD | D12: PROGRAMA ACADÉMICO | E12: SEMESTRE I | J12: SEMESTRE II
E13: Comunidad Indigena | F13: Deportistas de Alto Rendimiento | G13: Desplazado | H13: Negritudes | I13: Total | J13: Comunidad Indigena | K13: Deportistas de Alto Rendimiento | L13: Desplazado | M13: Negritudes | N13: Reinsertado | O13: Total
B14: Facultad de Bellas Artes y Humanidades | C14: 1 | D14: Licenciatura en Música | E14: 0 | F14: 0 | G14: 0 | H14: 2 | I14: 2 | O14: 0
C15: 66 | D15: Licenciatura en Filosofía (Nocturno) | E15: 0 | F15: 0 | G15: 1 | H15: 1 | I15: 2 | O15: 0
C16: 68 | D16: Licenciatura en Lengua Inglesa | E16: 2 | F16: 1 | G16: 1 | H16: 2 | I16: 6 | J16: 2 | K16: 0 | L16: 1 | M16: 3 | N16: 0 | O16: 6
B17: Facultad de Ciencias Ambientales | C17: 27 | D17: Administración del Medio Ambiente | E17: 1 | F17: 0 | G17: 1 | H17: 2 | I17: 4 | J17: 0 | K17: 2 | L17: 1 | M17: 1 | N17: 0 | O17: 4
C18: AG | D18: Técnico Profesional en Procesos del Turismo Sostenible (por ciclos propedéuticos) | E18: 1 | F18: 0 | G18: 1 | H18: 0 | I18: 2 | J18: 0 | K18: 0 | L18: 1 | M18: 1 | N18: 0 | O18: 2
B19: Facultad de Ciencias Básicas | C19: 7 | D19: Licenciatura en Matemáticas y Física | E19: 0 | F19: 0 | G19: 1 | H19: 1 | I19: 2 | O19: 0
B20: Facultad de Ciencias de la Educación | C20: 6 | D20: Licenciatura en Comunicación e Informática Educativa | E20: 0 | F20: 0 | G20: 3 | H20: 1 | I20: 4 | J20: 1 | K20: 1 | L20: 2 | M20: 1 | N20: 0 | O20: 5
C21: 9 | D21: Licenciatura en Español y Literatura (Nocturno) | E21: 1 | F21: 0 | G21: 0 | H21: 0 | I21: 1 | J21: 2 | K21: 0 | L21: 3 | M21: 2 | N21: 0 | O21: 7
C22: 21 | D22: Licenciatura en Etnoeducación y Desarrollo Comunitario | E22: 1 | F22: 0 | G22: 2 | H22: 1 | I22: 4 | O22: 0
C23: 33 | D23: Licenciatura en Pedagogía Infantil | E23: 1 | F23: 0 | G23: 3 | H23: 1 | I23: 5 | J23: 2 | K23: 0 | L23: 1 | M23: 6 | N23: 1 | O23: 10
B24: Facultad de Ciencias de la Salud | C24: 31 | D24: Medicina | E24: 1 | F24: 1 | G24: 1 | H24: 0 | I24: 3 | J24: 2 | K24: 1 | L24: 1 | M24: 1 | N24: 0 | O24: 5
C25: 32 | D25: Ciencias del Deporte y la Recreación | E25: 2 | F25: 1 | G25: 0 | H25: 1 | I25: 4 | J25: 0 | K25: 5 | L25: 2 | M25: 2 | N25: 0 | O25: 9
B26: Facultad de Ingeniería Industrial | C26: 13 | D26: Ingeniería Industrial | E26: 1 | F26: 1 | G26: 1 | H26: 2 | I26: 5 | J26: 2 | K26: 0 | L26: 0 | M26: 0 | N26: 0 | O26: 2
C27: 38 | D27: Ingeniería Industrial (Nocturno) | I27: 0 | J27: 0 | K27: 1 | L27: 0 | M27: 0 | N27: 0 | O27: 1
B28: Facultad de Ingeniería Mecánica | C28: 14 | D28: Ingeniería Mecánica | E28: 1 | F28: 1 | G28: 3 | H28: 1 | I28: 6 | J28: 2 | K28: 0 | L28: 3 | M28: 3 | N28: 0 | O28: 8
B29: Facultad de Ingenierías Eléctrica, Electrónica, Física y Ciencias de la Computación | C29: 12 | D29: Ingeniería Eléctrica | E29: 1 | F29: 1 | G29: 0 | H29: 2 | I29: 4 | J29: 0 | K29: 0 | L29: 5 | M29: 0 | N29: 0 | O29: 5
C30: 28 | D30: Ingeniería de Sistemas y Computación | E30: 1 | F30: 0 | G30: 2 | H30: 1 | I30: 4 | J30: 1 | K30: 0 | L30: 2 | M30: 3 | N30: 0 | O30: 6
C31: 34 | D31: Ingeniería Física | E31: 0 | F31: 0 | G31: 1 | H31: 1 | I31: 2 | O31: 0
B32: Facultad de Tecnología | C32: 16 | D32: Química Industrial | I32: 0 | J32: 1 | K32: 0 | L32: 0 | M32: 0 | N32: 0 | O32: 1
C33: 22 | D33: Tecnología Eléctrica | E33: 1 | F33: 1 | G33: 0 | H33: 0 | I33: 2 | J33: 3 | K33: 0 | L33: 1 | M33: 1 | N33: 0 | O33: 5
C34: 23 | D34: Tecnología Industrial | E34: 1 | F34: 0 | G34: 2 | H34: 1 | I34: 4 | J34: 0 | K34: 0 | L34: 2 | M34: 1 | N34: 0 | O34: 3
C35: 24 | D35: Tecnología Mecánica | E35: 0 | F35: 0 | G35: 2 | H35: 1 | I35: 3 | J35: 0 | K35: 0 | L35: 2 | M35: 1 | N35: 0 | O35: 3
C36: 25 | D36: Tecnología Química | E36: 0 | F36: 2 | G36: 1 | H36: 2 | I36: 5 | O36: 0
C37: 53 | D37: Administración Industrial | E37: 0 | F37: 0 | G37: 1 | H37: 0 | I37: 1 | O37: 0
B38: TOTAL | E38: 16 | F38: 9 | G38: 27 | H38: 23 | I38: 75 | J38: 18 | K38: 10 | L38: 27 | M38: 26 | N38: 1 | O38: 82
B40: Fuente: Base de datos del centro de registro y control académico

Sheet Pos_Genero
A1: BOLETÍN ESTADÍSTICO 2011 ESTUDIANTES MATRICULADOS EN PRIMER CURSO DE PROGRAMAS DE POSGRADO
C9: 1 | D9: =VLOOKUP(C9,CONVENCIONES!A2:B30,2,FALSE) -> Doctorado en Ciencias Ambientales (Convenio con la Universidad del Valle y la Universidad del Cauca)
B10: Seleccione un Programa Académico de Posgrado
D30: SEMESTRE I | E30: =VLOOKUP($D$9,$D$40:$J$68,2,FALSE) -> 0 | F30: =VLOOKUP($D$9,$D$40:$J$68,3,FALSE) -> 0
D31: SEMESTRE II | E31: =VLOOKUP($D$9,$D$40:$J$68,5,FALSE) -> 2 | F31: =VLOOKUP($D$9,$D$40:$J$68,6,FALSE) -> 0
B38: FACULTAD | C38: COD | D38: PROGRAMA ACADÉMICO | E38: SEMESTRE I | H38: SEMESTRE II
E39: Masculino | F39: Femenino | G39: Total | H39: Masculino | I39: Femenino | J39: Total
B40: Facultad de Bellas Artes y Humanidades | C40: 62 | D40: Maestría en Literatura | E40: 6 | F40: 9 | G40: =SUM(E40:F40) -> 15 | H40: 1 | I40: 0 | J40: =SUM(H40:I40) -> 1
C41: BM | D41: Maestría en Estética y Creación | E41: 14 | F41: 5 | G41: =SUM(E41:F41) -> 19 | J41: 0
C42: LT | D42: Maestría en Literatura (Extensión Ibagué - Tolima, en convenio con la Universidad del Tolima) | G42: 0 | H42: 6 | I42: 11 | J42: 17
B43: Facultad de Ciencias Ambientales | C43: 73 | D43: Maestría en Biología Vegetal | E43: 3 | F43: 7 | G43: =SUM(E43:F43) -> 10 | J43: 0
C44: DU | D44: Maestría en Ciencias Ambientales | E44: 13 | F44: 11 | G44: 24 | J44: 0
C45: DC | D45: Doctorado en Ciencias Ambientales (Convenio con la Universidad del Valle y la Universidad del Cauca) | G45: 0 | H45: 2 | I45: 0 | J45: 2
B46: Facultad de Ciencias Básicas | C46: 40 | D46: Maestría en Instrumentación Física | E46: 10 | F46: 1 | G46: 11 | J46: 0
C47: 54 | D47: Maestría en Enseñanza de la Matemática | E47: 10 | F47: 2 | G47: 12 | J47: 0
B48: Facultad de Ciencias de la Educación | C48: 90 | D48: Maestría en Educación | E48: 20 | F48: 28 | G48: 48 | J48: 0
C49: BK | D49: Maestría en Historia | E49: 8 | F49: 7 | G49: 15 | J49: 0
C50: 49 | D50: Maestría en Comunicación Educativa | G50: 0 | H50: 10 | I50: 12 | J50: 22
C51: 78 | D51: Doctorado en Ciencias de la Educación, Área Pensamiento Educativo y Comunicación | G51: 0 | H51: 5 | I51: 8 | J51: 13
B52: Facultad de Ciencias de la Salud | C52: 63 | D52: Maestría en Biología Molecular y Biotecnología | E52: 3 | F52: 7 | G52: 10 | J52: 0
C53: DR | D53: Especialización en Gerencia del Deporte y la Recreación | E53: 1 | F53: 3 | G53: 4 | H53: 10 | I53: 2 | J53: 12
C54: RI | D54: Especialización en Radiología e Imágenes Diagnósticas | E54: 2 | F54: 0 | G54: 2 | H54: 1 | I54: 1 | J54: 2
C55: 97 | D55: Especialización en Medicina Interna | G55: 0 | H55: 3 | I55: 1 | J55: 4
C56: 98 | D56: Especialización en Medicina Crítica y Cuidado Intensivo | G56: 0 | H56: 3 | I56: 1 | J56: 4
C57: DB | D57: Doctorado en Ciencias Biomédicas | G57: 0 | H57: 2 | I57: 0 | J57: 2
B58: Facultad de Ingeniería Industrial | C58: 41 | D58: Maestría en Administración Económica y Financiera | E58: 14 | F58: 10 | G58: 24 | J58: 0
C59: AF | D59: Maestría en Administración Económica y Financiera (Extensión Tunja - Boyacá) | E59: 10 | F59: 17 | G59: 27 | J59: 0
C60: AS | D60: Maestría en Sistemas Integrados de Gestión de la Calidad | E60: 11 | F60: 10 | G60: 21 | J60: 0
C61: 77 | D61: Maestría en Administración del Desarrollo Humano y Organizacional | G61: 0 | H61: 4 | I61: 9 | J61: 13
B62: Facultad de Ingeniería Mecánica | C62: DE | D62: Maestría en Ingeniería Mecánica | E62: 8 | F62: 0 | G62: 8 | J62: 0
C63: 44 | D63: Maestría en Sistemas Automáticos de Producción | G63: 0 | H63: 11 | I63: 1 | J63: 12
B64: Facultad de Ingenierías Eléctrica, Electrónica, Física y Ciencias de la Computación | C64: 47 | D64: Maestría en Ingeniería Eléctrica | E64: 17 | F64: 1 | G64: 18 | H64: 7 | I64: 0 | J64: 7
C65: AZ | D65: Especialización en Redes de Datos | E65: 1 | F65: 0 | G65: 1 | J65: 0
C66: AY | D66: Maestría en Ingeniería de Sistemas y Computación | G66: 0 | H66: 12 | I66: 4 | J66: 16
C67: DV | D67: Doctorado en Ingeniería | G67: 0 | H67: 4 | I67: 2 | J67: 6
B68: Facultad de Tecnología | C68: AO | D68: Especialización en Logística Empresarial | G68: 0 | H68: 6 | I68: 5 | J68: 11
B69: TOTAL | E69: =SUM(E40:E68) -> 151 | F69: 118 | G69: 269 | H69: 87 | I69: 57 | J69: 144
B72: Fuente: Base de datos del centro de registro y control académico
B73: Nota: Las especializaciones medico - clínicas son tomadas como maestrías

Sheet Res_Municipios
A1: BOLETÍN ESTADÍSTICO 2011 DEMANDA DE INGRESO Y MATRÍCULA POR PRIMERA VEZ EN PREGRADO PARA LOS MUNICIPIOS DE RISARALDA
D10: Seleccione un Municipio a Visualizar haciendo click en el mapa
H19: Santa Rosa de Cabal
G25: SEMESTRE I | H25: =VLOOKUP(H19,B55:D68,3,FALSE) -> 115
G26: SEMESTRE II | H26: =VLOOKUP(H19,B55:G68,6,FALSE) -> 96
B49: RESUMEN DEMANDA DE INGRESO Y MATRÍCULA PRIMERA VEZ DE ESTUDIANTES DE PREGRADO PARA LOS MUNICIPIOS DE RISARALDA
B53: MUNICIPIO | C53: I SEMESTRE | F53: II SEMESTRE
C54: INSCRITOS | D54: MATRICULADOS | E54: % | F54: INSCRITOS | G54: MATRICULADOS | H54: %
A55: 1 | B55: Apía | C55: 31 | D55: 15 | E55: =D55/C55 -> 0.4838709677 | F55: 17 | G55: 10 | H55: =G55/F55 -> 0.5882352941
A56: =A55+1 -> 2 | B56: Balboa | C56: 16 | D56: 6 | E56: =D56/C56 -> 0.375 | F56: 7 | G56: 4 | H56: =G56/F56 -> 0.5714285714
A57: =A56+1 -> 3 | B57: Belén de Umbría | C57: 45 | D57: 16 | E57: 0.3555555556 | F57: 66 | G57: 41 | H57: 0.6212121212
A58: 4 | B58: Dosquebradas | C58: 1049 | D58: 402 | E58: 0.3832221163 | F58: 727 | G58: 362 | H58: 0.4979367263
A59: 5 | B59: Guática | C59: 22 | D59: 14 | E59: 0.6363636364 | F59: 16 | G59: 11 | H59: 0.6875
A60: 6 | B60: La Celia | C60: 12 | D60: 5 | E60: 0.4166666667 | F60: 7 | G60: 4 | H60: 0.5714285714
A61: 7 | B61: La Virginia | C61: 140 | D61: 53 | E61: 0.3785714286 | F61: 100 | G61: 47 | H61: 0.47
A62: 8 | B62: Marsella | C62: 26 | D62: 15 | E62: 0.5769230769 | F62: 27 | G62: 13 | H62: 0.4814814815
A63: 9 | B63: Mistrató | C63: 18 | D63: 9 | E63: 0.5 | F63: 11 | G63: 7 | H63: 0.6363636364
A64: 10 | B64: Pereira | C64: 2574 | D64: 1095 | E64: 0.4254079254 | F64: 1822 | G64: 858 | H64: 0.4709110867
A65: 11 | B65: Pueblo Rico | C65: 9 | D65: 5 | E65: 0.5555555556 | F65: 5 | G65: 2 | H65: 0.4
A66: 12 | B66: Quinchía | C66: 74 | D66: 54 | E66: 0.7297297297 | F66: 32 | G66: 17 | H66: 0.53125
A67: 13 | B67: Santa Rosa de Cabal | C67: 271 | D67: 115 | E67: 0.4243542435 | F67: 190 | G67: 96 | H67: 0.5052631579
A68: 14 | B68: Santuario | C68: 21 | D68: 16 | E68: 0.7619047619 | F68: 12 | G68: 8 | H68: 0.6666666667
B69: TOTAL | C69: =SUM(C55:C68) -> 4308 | D69: =SUM(D55:D68) -> 1820 | E69: 0.4224698236 | F69: =SUM(F55:F68) -> 3039 | G69: =SUM(G55:G68) -> 1480 | H69: 0.4870023034
B71: Fuente: Base de datos del centro de registro y control académico

Sheet Ins_Cup_Adm
A1: BOLETÍN ESTADÍSTICO 2011 ESTUDIANTES INSCRITOS, CUPOS, ADMITIDOS Y MATRICULADOS POR PROGRAMA ACADÉMICO
B10: Seleccione un programa académico de Pregrado
G11: 4 | H11: =VLOOKUP(G11,CONVENCIONES!A33:B66,2,FALSE) -> Ingeniería de Sistemas y Computación
D30: SEMESTRE I | E30: =VLOOKUP($H$11,$D$43:$L$76,2,FALSE) -> 283 | F30: =VLOOKUP($H$11,$D$43:$L$76,3,FALSE) -> 81 | G30: =VLOOKUP($H$11,$D$43:$L$76,4,FALSE) -> 81 | H30: =VLOOKUP($H$11,$D$43:$L$76,5,FALSE) -> 81
D31: SEMESTRE II | E31: =VLOOKUP($H$11,$D$43:$L$76,6,FALSE) -> 188 | F31: =VLOOKUP($H$11,$D$43:$L$76,7,FALSE) -> 87 | G31: =VLOOKUP($H$11,$D$43:$L$76,8,FALSE) -> 87 | H31: =VLOOKUP($H$11,$D$43:$L$76,9,FALSE) -> 87
B41: FACULTAD | C41: COD | D41: PROGRAMA | E41: I SEMESTRE | I41: II SEMESTRE
E42: INSCRITOS | F42: CUPOS | G42: ADMITIDOS | H42: MAT. 1 VEZ | I42: INSCRITOS | J42: CUPOS | K42: ADMITIDOS | L42: MAT. 1 VEZ
B43: Bellas Artes y Humanidades | C43: 1 | D43: Licenciatura en Música | E43: 163 | F43: 85 | G43: 85 | H43: 85 | J43: 0 | K43: 0
C44: 4 | D44: Licenciatura en Artes Visuales | E44: 129 | F44: 67 | G44: 67 | H44: 67 | J44: 0 | K44: 0
C45: 66 | D45: Licenciatura en Filosofía (Nocturno) | E45: 48 | F45: 45 | G45: 45 | H45: 41 | J45: 0 | K45: 0
C46: 68 | D46: Licenciatura en Lengua Inglesa | E46: 188 | F46: 78 | G46: 78 | H46: 78 | I46: 180 | J46: 85 | K46: 85 | L46: 85
B47: Ciencias Ambientales | C47: 27 | D47: Administración del Medio Ambiente | E47: 183 | F47: 82 | G47: 82 | H47: 82 | I47: 166 | J47: 81 | K47: 81 | L47: 81
C48: AG | D48: Técnico Profesional en Procesos del Turismo Sostenible (por ciclos propedéuticos) | E48: 112 | F48: 90 | G48: 90 | H48: 90 | I48: 85 | J48: 86 | K48: 85 | L48: 86
B49: Ciencias Básicas | C49: 7 | D49: Licenciatura en Matemáticas y Física | E49: 58 | F49: 56 | G49: 56 | H49: 56 | J49: 0 | K49: 0
B50: Ciencias de la Educación | C50: 6 | D50: Licenciatura en Comunicación e Informática Educativa | E50: 187 | F50: 81 | G50: 81 | H50: 81 | I50: 143 | J50: 79 | K50: 79 | L50: 79
C51: 9 | D51: Licenciatura en Español y Literatura (Nocturno) | E51: 83 | F51: 67 | G51: 67 | H51: 67 | I51: 82 | J51: 65 | K51: 65 | L51: 65
C52: 21 | D52: Licenciatura en Etnoeducación y Desarrollo Comunitario | E52: 62 | F52: 57 | G52: 57 | H52: 57 | J52: 0 | K52: 0
C53: 33 | D53: Licenciatura en Pedagogía Infantil | E53: 193 | F53: 110 | G53: 110 | H53: 108 | I53: 163 | J53: 112 | K53: 112 | L53: 112
C54: 80 | D54: Licenciatura en Pedagogía Infantil (CERES Quinchía - Risaralda) | E54: 69 | F54: 32 | G54: 32 | H54: 32 | J54: 0 | K54: 0
C55: DY | D55: Licenciatura en Pedagogía Infantil (CERES Puerto Caldas (Pereira) - Risaralda) | F55: 0 | G55: 0 | I55: 85 | J55: 82 | K55: 82 | L55: 82
B56: Ciencias de la Salud | C56: 31 | D56: Medicina | E56: 1345 | F56: 62 | G56: 62 | H56: 62 | I56: 799 | J56: 64 | K56: 64 | L56: 64
C57: 32 | D57: Ciencias del Deporte y la Recreación | E57: 260 | F57: 86 | G57: 86 | H57: 86 | I57: 215 | J57: 83 | K57: 83 | L57: 83
C58: 92 | D58: Medicina Veterinaria y Zootecnia | E58: 131 | F58: 60 | G58: 60 | H58: 48 | I58: 113 | J58: 60 | K58: 60 | L58: 46
C59: 99 | D59: Tecnología en Atención Prehospitalaria | E59: 110 | F59: 42 | G59: 42 | H59: 42 | I59: 67 | J59: 50 | K59: 50 | L59: 34
B60: Ingeniería Industrial | C60: 13 | D60: Ingeniería Industrial | E60: 651 | F60: 86 | G60: 86 | H60: 86 | I60: 298 | J60: 86 | K60: 86 | L60: 86
C61: 38 | D61: Ingeniería Industrial (Nocturno) | E61: 186 | F61: 100 | G61: 100 | H61: 99 | I61: 189 | J61: 102 | K61: 102 | L61: 102
B62: Ingeniería Mecánica | C62: 14 | D62: Ingeniería Mecánica | E62: 268 | F62: 81 | G62: 81 | H62: 81 | I62: 134 | J62: 85 | K62: 85 | L62: 85
B63: Ingenierías Eléctrica, Electrónica, Física y Ciencias de la Computación | C63: 12 | D63: Ingeniería Eléctrica | E63: 155 | F63: 82 | G63: 82 | H63: 82 | I63: 128 | J63: 83 | K63: 83 | L63: 83
C64: 28 | D64: Ingeniería de Sistemas y Computación | E64: 283 | F64: 81 | G64: 81 | H64: 81 | I64: 188 | J64: 87 | K64: 87 | L64: 87
C65: 34 | D65: Ingeniería Física | E65: 87 | F65: 85 | G65: 85 | H65: 83 | J65: 0 | K65: 0
C66: 36 | D66: Ingeniería Electrónica (Nocturno) | E66: 79 | F66: 80 | G66: 79 | H66: 56 | I66: 61 | J66: 80 | K66: 61 | L66: 52
C67: 37 | D67: Ingeniería de Sistemas y Computación (Nocturno) | E67: 90 | F67: 80 | G67: 80 | H67: 78 | I67: 85 | J67: 80 | K67: 80 | L67: 69
B68: Tecnología | C68: 22 | D68: Tecnología Eléctrica | E68: 107 | F68: 82 | G68: 82 | H68: 82 | I68: 100 | J68: 86 | K68: 86 | L68: 86
C69: 23 | D69: Tecnología Industrial | E69: 254 | F69: 83 | G69: 83 | H69: 83 | I69: 327 | J69: 87 | K69: 87 | L69: 87
C70: 24 | D70: Tecnología Mecánica | E70: 107 | F70: 81 | G70: 81 | H70: 81 | I70: 162 | J70: 83 | K70: 83 | L70: 83
C71: 25 | D71: Tecnología Química | E71: 102 | F71: 85 | G71: 85 | H71: 85 | J71: 0 | K71: 0
C72: 53 | D72: Administración Industrial | E72: 26 | F72: 23 | G72: 23 | H72: 23 | I72: 27 | J72: 22 | K72: 22 | L72: 22
C73: 86 | D73: Técnico Profesional en Mecatrónica (por ciclos propedéuticos) | E73: 134 | F73: 81 | G73: 81 | H73: 81 | I73: 99 | J73: 80 | K73: 80 | L73: 68
C74: 89 | D74: Ingeniería en Mecatrónica (por ciclos propedéuticos) | E74: 18 | F74: 16 | G74: 16 | H74: 16 | J74: 0 | K74: 0
C75: 16 | D75: Química Industrial | F75: 0 | I75: 126 | J75: 83 | K75: 83 | L75: 83
C76: BN | D76: Tecnología Industrial (CERES Belén de Umbría - Risaralda) | F76: 0 | G76: 0 | I76: 37 | J76: 30 | K76: 30 | L76: 30
B77: TOTAL | E77: =SUM(E43:E76) -> 5868 | F77: =SUM(F43:F76) -> 2226 | G77: 2225 | H77: 2179 | I77: 4059 | J77: 1921 | K77: =SUM(K43:K76) -> 1901 | L77: 1840
B79: Fuente: Base de datos del centro de registro y control académico
B80: Nota: La cantidad de Matriculados por primera vez puede ser mayor que la cantidad de cupos ya que se designan cupos adicionales por mecanismos de excepción.

Sheet Icfes
A1: BOLETÍN ESTADÍSTICO 2011 PROMEDIO DE LOS PUNTAJES DE LAS PRUEBAS ICFES DE LOS ESTUDIANTES MATRICULADOS POR PRIMERA VEZ POR PROGRAMA ACADÉMICO
B12: FACULTAD | C12: COD | D12: PROGRAMA | E12: I SEMESTRE | K12: II SEMESTRE | R12: CONVENCIONES
E13: PA | F13: S | G13: CV | H13: PN | I13: S | J13: CV | K13: PA | L13: S | M13: CV | N13: PN | O13: S | P13: CV | R13: PA | S13: Pruebas Antiguas
B14: Facultad de Bellas Artes y Humanidades | C14: 1 | D14: Licenciatura en Música | E14: 165.8166667 | F14: 16.72605253 | G14: =F14/E14 -> 0.1008707561 | H14: 67.62729268 | I14: 17.14656118 | J14: =I14/H14 -> 0.2535449889 | R14: PN | S14: Pruebas Nuevas
C15: 4 | D15: Licenciatura en Artes Visuales | E15: 266 | G15: =F15/E15 -> 0 | H15: 53.9780303 | I15: 5.962696659 | J15: =I15/H15 -> 0.1104652509 | R15: S | S15: Desviación Estándar
C16: 66 | D16: Licenciatura en Filosofía (Nocturno) | E16: 367.5 | F16: 164.75588 | G16: =F16/E16 -> 0.4483153198 | H16: 52.48282051 | I16: 7.998137924 | J16: 0.1523953523 | R16: CV | S16: Coeficiente de Variación
C17: 68 | D17: Licenciatura en Lengua Inglesa | E17: 278 | F17: 0 | G17: =F17/E17 -> 0 | H17: 57.2825 | I17: 7.991216032 | J17: 0.1395053643 | K17: 247 | M17: =L17/K17 -> 0 | N17: 52.64845238 | O17: 5.333361808 | P17: =O17/N17 -> 0.1013013976
B18: Facultad de Ciencias Ambientales | C18: 27 | D18: Administración del Medio Ambiente | E18: 0 | F18: 0 | H18: 55.7595122 | I18: 6.190747158 | J18: 0.1110258486 | K18: 0 | L18: 0 | N18: 51.81864198 | O18: 4.620763128 | P18: 0.0891718299
C19: AG | D19: Técnico Profesional en Procesos del Turismo Sostenible (por ciclos propedéuticos) | E19: 259.6 | F19: 55.31997831 | G19: =F19/E19 -> 0.2130969889 | H19: 46.76035714 | I19: 6.110968303 | J19: 0.1306869467 | K19: 259.6666667 | L19: 44.16182363 | M19: 0.1700712078 | N19: 44.71987342 | O19: 3.804571978 | P19: 0.08507564281
B20: Facultad de Ciencias Básicas | C20: 7 | D20: Licenciatura en Matemáticas y Física | E20: 268 | F20: 30.39736831 | G20: =F20/E20 -> 0.1134230161 | H20: 51.39519231 | I20: 6.472661207 | J20: 0.1259390405
B21: Facultad de Ciencias de la Educación | C21: 6 | D21: Licenciatura en Comunicación e Informática Educativa | E21: 303 | G21: =F21/E21 -> 0 | H21: 54.036125 | I21: 5.796676371 | J21: 0.1072740943 | K21: 0 | L21: 0 | N21: 49.71443038 | O21: 3.90492974 | P21: 0.07854720873
C22: 9 | D22: Licenciatura en Español y Literatura (Nocturno) | E22: 259.875 | F22: 28.57790105 | G22: =F22/E22 -> 0.1099678732 | H22: 50.32694915 | I22: 9.108943172 | J22: 0.180995338 | K22: 269 | L22: 29.69848481 | M22: 0.1104032893 | N22: 49.13349206 | O22: 5.924204087 | P22: 0.1205736421
C23: 21 | D23: Licenciatura en Etnoeducación y Desarrollo Comunitario | E23: 242.3333333 | F23: 71.08773921 | G23: =F23/E23 -> 0.2933469294 | H23: 47.96254902 | I23: 7.839018776 | J23: 0.1634404121
C24: 33 | D24: Licenciatura en Pedagogía Infantil | E24: 253.5 | F24: 2.121320344 | G24: =F24/E24 -> 0.008368127588 | H24: 50.02641509 | I24: 5.378872459 | J24: 0.1075206458 | K24: 305 | M24: 0 | N24: 47.01900901 | O24: 3.670589488 | P24: 0.0780660751
C25: 80 | D25: Licenciatura en Pedagogía Infantil (CERES Quinchía - Risaralda) | E25: 0 | F25: 0 | H25: 0 | I25: 0
C26: DY | D26: Licenciatura en Pedagogía Infantil (CERES Puerto Caldas (Pereira) - Risaralda) | K26: 0 | L26: 0 | N26: 0 | O26: 0
B27: Facultad de Ciencias de la Salud | C27: 31 | D27: Medicina | E27: 0 | F27: 0 | H27: 73.54870968 | I27: 10.55300182 | J27: 0.1434831674 | K27: 0 | L27: 0 | N27: 65.603125 | O27: 7.019425852 | P27: 0.1069983458
C28: 32 | D28: Ciencias del Deporte y la Recreación | E28: 0 | F28: 0 | H28: 55.51197674 | I28: 4.524236905 | J28: 0.08150019457 | K28: 0 | L28: 0 | N28: 53.78819277 | O28: 5.621191208 | P28: 0.1045060434
C29: 92 | D29: Medicina Veterinaria y Zootecnia | E29: 0 | F29: 0 | H29: 51.03229167 | I29: 6.225285173 | J29: 0.1219871765 | K29: 317 | M29: 0 | N29: 50.72711111 | O29: 6.545334085 | P29: 0.1290302945
C30: 99 | D30: Tecnología en Atención Prehospitalaria | E30: 0 | F30: 0 | H30: 50.63309524 | I30: 5.845664012 | J30: 0.115451445 | K30: 0 | L30: 0 | N30: 49.20029412 | O30: 6.255047652 | P30: 0.1271343549
B31: Facultad de Ingeniería Industrial | C31: 13 | D31: Ingeniería Industrial | E31: 0 | F31: 0 | H31: 65.19174419 | I31: 7.202790504 | J31: 0.1104862371 | K31: 0 | L31: 0 | N31: 58.68223529 | O31: 5.529764349 | P31: 0.09423234001
C32: 38 | D32: Ingeniería Industrial (Nocturno) | E32: 288 | F32: 42.68489194 | G32: 0.1482114304 | H32: 49.00547368 | I32: 4.24200569 | J32: 0.08656187505 | K32: 295 | L32: 11.30486621 | M32: 0.03832158037 | N32: 48.92065934 | O32: 4.030143312 | P32: 0.08238121412
B33: Facultad de Ingeniería Mecánica | C33: 14 | D33: Ingeniería Mecánica | E33: 0 | F33: 0 | H33: 63.20679012 | I33: 5.258523754 | J33: 0.08319555135 | K33: 323 | M33: 0 | N33: 55.20416667 | O33: 6.459271325 | P33: 0.1170069528
B34: Facultad de Ingenierías Eléctrica, Electrónica, Física y Ciencias de la Computación | C34: 12 | D34: Ingeniería Eléctrica | E34: 0 | F34: 0 | H34: 58.41487805 | I34: 5.239165715 | J34: 0.08968889246 | K34: 0 | L34: 0 | N34: 54.59590361 | O34: 5.266052587 | P34: 0.09645508615
C35: 28 | D35: Ingeniería de Sistemas y Computación | E35: 0 | F35: 0 | H35: 61.2154321 | I35: 5.126432251 | J35: 0.08374411607 | K35: 0 | L35: 0 | N35: 53.94091954 | O35: 5.145597945 | P35: 0.0953932189
C36: 34 | D36: Ingeniería Física | E36: 0 | F36: 0 | H36: 53.73060241 | I36: 9.526578014 | J36: 0.1773026467
C37: 36 | D37: Ingeniería Electrónica (Nocturno) | E37: 0 | F37: 0 | H37: 54.12589286 | I37: 7.507591256 | J37: 0.1387060954 | K37: 0 | L37: 0 | N37: 49.33333333 | O37: 4.676512661 | P37: 0.09479417556
C38: 37 | D38: Ingeniería de Sistemas y Computación (Nocturno) | E38: 266.1428571 | F38: 28.09168662 | G38: 0.1055511575 | H38: 49.56126761 | I38: 6.064180531 | J38: 0.1223572524 | K38: 284.5 | L38: 0.7071067812 | M38: 0.002485436841 | N38: 47.17121212 | O38: 3.635779258 | P38: 0.07707623135
B39: Facultad de Tecnología | C39: 22 | D39: Tecnología Eléctrica | E39: 320 | G39: 0 | H39: 49.02938272 | I39: 5.145626139 | J39: 0.1049498455 | K39: 279.5 | L39: 43.13351365 | M39: 0.1543238413 | N39: 50.17404762 | O39: 3.17959955 | P39: 0.06337139818
C40: 23 | D40: Tecnología Industrial | E40: 310 | G40: 0 | H40: 54.3252439 | I40: 4.043480113 | J40: 0.07443096104 | K40: 0 | L40: 0 | N40: 55.40885057 | O40: 4.527529083 | P40: 0.08171129767
C41: 24 | D41: Tecnología Mecánica | E41: 0 | F41: 0 | H41: 49.46271605 | I41: 5.345488521 | J41: 0.1080710674 | K41: 0 | L41: 0 | N41: 50.91216867 | O41: 3.492454601 | P41: 0.06859763966
C42: 25 | D42: Tecnología Química | E42: 301 | F42: 5.656854249 | G42: 0.01879353571 | H42: 55.79445783 | I42: 6.125043604 | J42: 0.10977871
C43: 53 | D43: Administración Industrial | E43: 312 | F43: 2.828427125 | G43: 0.009065471554 | H43: 47.884 | I43: 2.5312588 | J43: 0.05286230891 | K43: 278.5714286 | L43: 35.92982579 | M43: 0.1289788618 | N43: 48.77111111 | O43: 4.183683916 | P43: 0.08578200949
C44: 86 | D44: Técnico Profesional en Mecatrónica (por ciclos propedéuticos) | E44: 307 | F44: 35.35533906 | G44: 0.1151639709 | H44: 58.35265823 | I44: 6.444256379 | J44: 0.1104363807 | K44: 286.3333333 | L44: 44.45597073 | M44: 0.155259502 | N44: 48.85769231 | O44: 4.547631859 | P44: 0.09307913748
C45: 89 | D45: Ingeniería en Mecatrónica (por ciclos propedéuticos) | E45: 266.5 | F45: 0.7071067812 | G45: 0.002653308747 | H45: 44.89846154 | I45: 2.931805036 | J45: 0.06529856337
C46: 16 | D46: Química Industrial | K46: 334 | M46: 0 | N46: 54.71012195 | O46: 6.088717251 | P46: 0.1112905077
C47: BN | D47: Tecnología Industrial (CERES Belén de Umbría - Risaralda) | K47: 0 | L47: 0 | N47: 0 | O47: 0
B49: Fuente: Base de datos del centro de registro y control académico

Sheet Ind_Cobertura
A1: BOLETÍN ESTADÍSTICO 2011 INDICADORES DE COBERTURA
B9: INDICADORES DE COBERTURA 2011 - I
B11: DESCRIPCIÓN | C11: COBERTURA
B12: Admitidos / Inscritos | C12: 0.502
B13: Matriculados / Inscritos | C13: 0.3713
B14: Matriculados / Admitidos | C14: 0.7396
B18: INDICADORES DE COBERTURA 2011 - II
B20: DESCRIPCIÓN | C20: COBERTURA
B21: Admitidos / Inscritos | C21: 0.7553
B22: Matriculados / Inscritos | C22: 0.4553
B23: Matriculados / Admitidos | C23: 0.6
B25: Fuente: Base de datos del centro de registro y control académico

Sheet Tendencia
A1: BOLETÍN ESTADÍSTICO 2011 ESTUDIANTES MATRICULADOS POR PRIMERA VEZ EN PROGRAMAS DE PREGRADO (2003 - 2011)
B10: Seleccione un Programa Académico de Pregrado
N12: 1 | O12: =VLOOKUP(N12,CONVENCIONES!A33:B66,2,FALSE) -> Administración del Medio Ambiente
E20: 2003 | F20: =E20+1 -> 2004 | G20: =F20+1 -> 2005 | H20: 2006 | I20: 2007 | J20: 2008 | K20: 2009 | L20: 2010 | M20: 2011
D21: SEMESTRE I | E21: =VLOOKUP($O$12,$D$39:$V$93,2,FALSE) -> 76 | F21: =VLOOKUP($O$12,$D$39:$V$93,4,FALSE) -> 75 | G21: =VLOOKUP($O$12,$D$39:$V$93,6,FALSE) -> 84 | H21: =VLOOKUP($O$12,$D$39:$V$93,8,FALSE) -> 75 | I21: =VLOOKUP($O$12,$D$39:$V$93,10,FALSE) -> 77 | J21: =VLOOKUP($O$12,$D$39:$V$93,12,FALSE) -> 83 | K21: =VLOOKUP($O$12,$D$39:$V$93,14,FALSE) -> 82 | L21: =VLOOKUP($O$12,$D$39:$V$93,16,FALSE) -> 81 | M21: =VLOOKUP($O$12,$D$39:$V$93,18,FALSE) -> 82
D22: SEMESTRE II | E22: =VLOOKUP($O$12,$D$39:$V$93,3,FALSE) -> 81 | F22: =VLOOKUP($O$12,$D$39:$V$93,5,FALSE) -> 76 | G22: =VLOOKUP($O$12,$D$39:$V$93,7,FALSE) -> 81 | H22: =VLOOKUP($O$12,$D$39:$V$93,9,FALSE) -> 64 | I22: =VLOOKUP($O$12,$D$39:$V$93,11,FALSE) -> 81 | J22: =VLOOKUP($O$12,$D$39:$V$93,13,FALSE) -> 81 | K22: =VLOOKUP($O$12,$D$39:$V$93,15,FALSE) -> 81 | L22: =VLOOKUP($O$12,$D$39:$V$93,17,FALSE) -> 84 | M22: =VLOOKUP($O$12,$D$39:$V$93,19,FALSE) -> 81
B37: FACULTAD | C37: COD | D37: PROGRAMA | E37: 2003 | G37: 2004 | I37: 2005 | K37: 2006 | M37: 2007 | O37: 2008 | Q37: 2009 | S37: 2010 | U37: 2011
E38: I | F38: II | G38: I | H38: II | I38: I | J38: II | K38: I | L38: II | M38: I | N38: II | O38: I | P38: II | Q38: I | R38: II | S38: I | T38: II | U38: I | V38: II
B39: Bellas Artes y Humanidades | C39: 1 | D39: Licenciatura en Música | E39: 42 | G39: 70 | I39: 88 | K39: 83 | M39: 73 | O39: 86 | Q39: 89 | R39: 0 | S39: 88 | T39: 0 | U39: 85
C40: 2 | D40: Licenciatura en Artes Plásticas
C41: 3 | D41: Licenciatura en Filosofía (Diurno) | E41: 20 | G41: 38
C42: 4 | D42: Licenciatura en Artes Visuales | E42: 65 | G42: 80 | I42: 80 | K42: 52 | M42: 51 | O42: 66 | Q42: 65 | R42: 0 | S42: 69 | T42: 0 | U42: 67
C43: 66 | D43: Licenciatura en Filosofía (Nocturno) | I43: 37 | K43: 31 | M43: 34 | O43: 33 | Q43: 31 | R43: 0 | S43: 39 | T43: 0 | U43: 41
C44: 68 | D44: Licenciatura en Lengua Inglesa | H44: 79 | I44: 85 | J44: 78 | K44: 71 | L44: 73 | M44: 78 | N44: 80 | O44: 79 | P44: 78 | Q44: 79 | R44: 78 | S44: 79 | T44: 79 | U44: 78 | V44: 85
C45: BH | D45: Licenciatura en Música (Colombia Creativa) | Q45: 0 | R45: 36
B46: Ciencias Ambientales | C46: 27 | D46: Administración del Medio Ambiente | E46: 76 | F46: 81 | G46: 75 | H46: 76 | I46: 84 | J46: 81 | K46: 75 | L46: 64 | M46: 77 | N46: 81 | O46: 83 | P46: 81 | Q46: 82 | R46: 81 | S46: 81 | T46: 84 | U46: 82 | V46: 81
C47: AG | D47: Técnico Profesional en Procesos del Turismo Sostenible (por ciclos propedéuticos) | Q47: 70 | R47: 0 | S47: 46 | T47: 38 | U47: 90 | V47: 86
C48: DT | D48: Técnico Profesional en Procesos del Turismo Sostenible (por ciclos propedéuticos) en Articulación | S48: 0 | T48: 91
B49: Ciencias Básicas | C49: 7 | D49: Licenciatura en Matemáticas y Física | E49: 68 | F49: 66 | H49: 43 | J49: 51 | L49: 47 | N49: 31 | P49: 39 | Q49: 67 | R49: 0 | S49: 55 | T49: 0 | U49: 56
B50: Ciencias de la Educación | C50: 6 | D50: Licenciatura en Comunicación e Informática Educativa | H50: 81 | I50: 86 | J50: 79 | K50: 73 | L50: 79 | M50: 78 | N50: 78 | O50: 78 | P50: 78 | Q50: 82 | R50: 78 | S50: 81 | T50: 77 | U50: 81 | V50: 79
C51: 9 | D51: Licenciatura en Español y Literatura (Nocturno) | E51: 66 | F51: 62 | G51: 57 | H51: 60 | I51: 58 | J51: 42 | K51: 55 | L51: 46 | M51: 64 | N51: 47 | O51: 48 | P51: 56 | Q51: 43 | R51: 56 | S51: 66 | T51: 74 | U51: 67 | V51: 65
C52: DN | D52: Licenciatura en Español y Literatura (CERES Quinchía - Risaralda) | S52: 0 | T52: 31
C53: 10 | D53: Licenciatura en Español y Comunicación Audiovisual
C54: 21 | D54: Licenciatura en Etnoeducación y Desarrollo Comunitario | E54: 52 | F54: 37 | G54: 27 | H54: 42 | I54: 65 | J54: 33 | K54: 40 | L54: 35 | M54: 42 | N54: 41 | O54: 32 | P54: 42 | Q54: 34 | R54: 55 | S54: 58 | T54: 58 | U54: 57
C55: 33 | D55: Licenciatura en Pedagogía Infantil | E55: 102 | F55: 106 | G55: 100 | H55: 100 | I55: 105 | J55: 81 | K55: 78 | L55: 84 | M55: 78 | N55: 107 | O55: 108 | P55: 101 | Q55: 114 | R55: 110 | S55: 110 | T55: 96 | U55: 108 | V55: 112
C56: 80 | D56: Licenciatura en Pedagogía Infantil (CERES Quinchía - Risaralda) | L56: 47 | U56: 32
C57: AA | D57: Licenciatura en Etnoeducación y Desarrollo Comunitario (CERES Mistrató - Risaralda) | N57: 30
C58: AJ | D58: Licenciatura en Etnoeducación y Desarrollo Comunitario (CERES Quinchía - Risaralda) | S58: 0 | T58: 0
C59: AW | D59: Licenciatura en Pedagogía Infantil (CERES Mistrató - Risaralda) | Q59: 0 | R59: 34 | S59: 0 | T59: 42
C60: DY | D60: Licenciatura en Pedagogía Infantil (CERES Puerto Caldas (Pereira) - Risaralda) | V60: 82
C61: AR | D61: Licenciatura en Pedagogía Infantil (Extensión San Andrés Islas) | Q61: 0 | R61: 24
B62: Ciencias de la Salud | C62: 31 | D62: Medicina | E62: 50 | F62: 51 | G62: 52 | H62: 47 | I62: 56 | J62: 55 | K62: 56 | L62: 56 | M62: 56 | N62: 55 | O62: 58 | P62: 56 | Q62: 56 | R62: 57 | S62: 60 | T62: 55 | U62: 62 | V62: 64
C63: 32 | D63: Ciencias del Deporte y la Recreación | E63: 72 | F63: 77 | G63: 69 | H63: 78 | I63: 82 | J63: 82 | K63: 84 | L63: 86 | M63: 78 | N63: 81 | O63: 84 | P63: 82 | Q63: 81 | R63: 81 | S63: 83 | T63: 79 | U63: 86 | V63: 83
C64: 91 | D64: Fisioterapia y Kinesiología | S64: 0 | T64: 25
C65: 92 | D65: Medicina Veterinaria y Zootecnia | Q65: 0 | R65: 58 | S65: 63 | T65: 59 | U65: 48 | V65: 46
C66: 99 | D66: Tecnología en Atención Prehospitalaria | Q66: 39 | R66: 26 | S66: 41 | T66: 37 | U66: 42 | V66: 34
B67: Ingenierías Eléctrica, Electrónica, Física y Ciencias de la Computación | C67: 12 | D67: Ingeniería Eléctrica | E67: 75 | F67: 74 | G67: 74 | H67: 76 | I67: 83 | J67: 82 | K67: 83 | L67: 80 | M67: 79 | N67: 81 | O67: 83 | P67: 82 | Q67: 85 | R67: 83 | S67: 86 | T67: 83 | U67: 82 | V67: 83
C68: 28 | D68: Ingeniería de Sistemas y Computación | E68: 76 | F68: 80 | G68: 77 | H68: 78 | I68: 81 | J68: 81 | K68: 87 | L68: 82 | M68: 77 | N68: 82 | O68: 82 | P68: 83 | Q68: 85 | R68: 81 | S68: 83 | T68: 81 | U68: 81 | V68: 87
C69: 34 | D69: Ingeniería Física | E69: 85 | G69: 85 | I69: 122 | K69: 95 | M69: 79 | O69: 88 | Q69: 88 | R69: 0 | S69: 82 | T69: 0 | U69: 83
C70: 36 | D70: Ingeniería Electrónica (Nocturno) | F70: 76 | G70: 68 | H70: 55 | I70: 79 | J70: 34 | K70: 62 | L70: 50 | M70: 76 | N70: 65 | O70: 75 | P70: 61 | Q70: 66 | R70: 47 | S70: 65 | T70: 50 | U70: 56 | V70: 52
C71: 37 | D71: Ingeniería de Sistemas y Computación (Nocturno) | F71: 70 | G71: 65 | H71: 60 | I71: 75 | J71: 65 | K71: 74 | L71: 69 | M71: 80 | N71: 70 | O71: 70 | P71: 72 | Q71: 84 | R71: 58 | S71: 78 | T71: 63 | U71: 78 | V71: 69
B72: Ingeniería Industrial | C72: 13 | D72: Ingeniería Industrial | E72: 76 | F72: 77 | G72: 77 | H72: 76 | I72: 85 | J72: 84 | K72: 83 | L72: 89 | M72: 78 | N72: 81 | O72: 81 | P72: 81 | Q72: 85 | R72: 82 | S72: 84 | T72: 84 | U72: 86 | V72: 86
C73: 38 | D73: Ingeniería Industrial (Nocturno) | F73: 64 | G73: 81 | H73: 73 | I73: 84 | J73: 80 | K73: 90 | L73: 86 | M73: 75 | N73: 101 | O73: 101 | P73: 96 | Q73: 102 | R73: 102 | S73: 102 | T73: 107 | U73: 99 | V73: 102
C74: SA | D74: Ingeniería Industrial (Extensión San Andrés Islas) | M74: 40
B75: Ingeniería Mecánica | C75: 14 | D75: Ingeniería Mecánica | E75: 74 | F75: 84 | G75: 72 | H75: 78 | I75: 82 | J75: 81 | K75: 83 | L75: 85 | M75: 78 | N75: 81 | O75: 81 | P75: 81 | Q75: 84 | R75: 81 | S75: 83 | T75: 82 | U75: 81 | V75: 85
C76: 39 | D76: Ingeniería Mecánica (Nocturno) | F76: 56 | G76: 35 | H76: 23 | I76: 50 | J76: 32 | K76: 41 | L76: 32
B77: Tecnologías | C77: 16 | D77: Química Industrial | H77: 81 | J77: 80 | L77: 82 | N77: 80 | P77: 82 | Q77: 0 | R77: 80 | S77: 0 | T77: 81 | V77: 83
C78: 22 | D78: Tecnología Eléctrica | E78: 72 | F78: 77 | G78: 70 | H78: 76 | I78: 82 | J78: 82 | K78: 83 | L78: 82 | M78: 77 | N78: 81 | O78: 81 | P78: 81 | Q78: 82 | R78: 81 | S78: 85 | T78: 82 | U78: 82 | V78: 86
C79: 23 | D79: Tecnología Industrial | E79: 72 | F79: 75 | G79: 65 | H79: 75 | I79: 82 | J79: 81 | K79: 87 | L79: 82 | M79: 79 | N79: 80 | O79: 81 | P79: 86 | Q79: 83 | R79: 81 | S79: 86 | T79: 83 | U79: 83 | V79: 87
C80: 24 | D80: Tecnología Mecánica | E80: 71 | F80: 76 | G80: 69 | H80: 77 | I80: 82 | J80: 82 | K80: 82 | L80: 79 | M80: 81 | N80: 82 | O80: 82 | P80: 81 | Q80: 87 | R80: 81 | S80: 82 | T80: 85 | U80: 81 | V80: 83
C81: 25 | D81: Tecnología Química | E81: 74 | F81: 75 | G81: 72 | I81: 80 | K81: 90 | M81: 78 | O81: 81 | Q81: 81 | R81: 0 | S81: 88 | T81: 0 | U81: 85
C82: 53 | D82: Administración Industrial | G82: 27 | H82: 25 | I82: 21 | K82: 19 | M82: 25 | N82: 34 | O82: 24 | P82: 29 | Q82: 26 | R82: 17 | S82: 20 | T82: 21 | U82: 23 | V82: 22
C83: 65 | D83: Química Industrial (Profesionalización) | G83: 22 | H83: 25 | I83: 26 | K83: 10 | Q83: 0 | R83: 0
C84: 86 | D84: Técnico Profesional en Mecatrónica (por ciclos propedéuticos) | N84: 74 | O84: 88 | P84: 55 | Q84: 77 | R84: 67 | S84: 85 | T84: 76 | U84: 81 | V84: 68
C85: DJ | D85: Técnico Profesional en Mecatrónica (por ciclos propedéuticos) en Articulación | Q85: 28 | R85: 34 | S85: 0 | T85: 148
C86: DL | D86: Técnico Profesional en Procesos Agroindustriales (por ciclos propedéuticos) en Articulación | Q86: 22 | R86: 93 | S86: 0 | T86: 75
C87: 89 | D87: Ingeniería en Mecatrónica (por ciclos propedéuticos) | P87: 42 | Q87: 0 | R87: 0 | S87: 0 | T87: 0 | U87: 16
C88: BN | D88: Tecnología Industrial (CERES Belén de Umbría - Risaralda) | V88: 30
C89: AB | D89: Tecnología Industrial (CERES Mistrató - Risaralda) | P89: 42 | Q89: 0 | R89: 32
C90: AC | D90: Tecnología Industrial (CERES Quinchía - Risaralda) | S90: 0 | T90: 19
C91: AE | D91: Tecnología Industrial (CERES Pueblo Rico - Risaralda) | Q91: 0 | R91: 43
C92: AX | D92: Tecnología Industrial (CERES Puerto Carreño - Vichada) | Q92: 38 | R92: 0
C93: BD | D93: Ingeniería en Mecatrónica (por ciclos propedéuticos) (CERES Puerto Carreño - Vichada) | Q93: 15 | R93: 0
B94: TOTAL | E94: =SUM(E39:E89) -> 1288 | F94: 1364 | G94: 1527 | H94: 1484 | I94: 1940 | J94: 1446 | K94: 1767 | L94: 1515 | M94: 1711 | N94: 1623 | O94: 1853 | P94: 1667 | Q94: =SUM(Q39:Q93) -> 2150 | R94: =SUM(R39:R93) -> 1917 | S94: =SUM(S39:S93) -> 2128 | T94: =SUM(T39:T93) -> 2145 | U94: =SUM(U39:U93) -> 2179 | V94: 1840
B95: TOTAL ANUAL | E95: =SUM(E94:F94) -> 2652 | G95: =SUM(G94:H94) -> 3011 | I95: =SUM(I94:J94) -> 3386 | K95: =SUM(K94:L94) -> 3282 | M95: =SUM(M94:N94) -> 3334 | O95: =SUM(O94:P94) -> 3520 | Q95: =SUM(Q94:R94) -> 4067 | S95: =SUM(S94:T94) -> 4273 | U95: =SUM(U94:V94) -> 4019
B97: Fuente: Base de datos del centro de registro y control académico

Sheet CONVENCIONES (hidden)
A1: POSGRADO
A2: 1 | B2: Doctorado en Ciencias Ambientales (Convenio con la Universidad del Valle y la Universidad del Cauca)
A3: =1+A2 -> 2 | B3: Doctorado en Ciencias Biomédicas
A4: =1+A3 -> 3 | B4: Doctorado en Ciencias de la Educación, Área Pensamiento Educativo y Comunicación
A5: 4 | B5: Doctorado en Ingeniería
A6: 5 | B6: Especialización en Gerencia del Deporte y la Recreación
A7: 6 | B7: Especialización en Logística Empresarial
A8: 7 | B8: Especialización en Medicina Crítica y Cuidado Intensivo
A9: 8 | B9: Especialización en Medicina Interna
A10: 9 | B10: Especialización en Radiología e Imágenes Diagnósticas
A11: 10 | B11: Especialización en Redes de Datos
A12: 11 | B12: Maestría en Administración del Desarrollo Humano y Organizacional
A13: 12 | B13: Maestría en Administración Económica y Financiera
A14: 13 | B14: Maestría en Administración Económica y Financiera (Extensión Tunja - Boyacá)
A15: 14 | B15: Maestría en Biología Molecular y Biotecnología
A16: 15 | B16: Maestría en Biología Vegetal
A17: 16 | B17: Maestría en Ciencias Ambientales
A18: 17 | B18: Maestría en Comunicación Educativa
A19: 18 | B19: Maestría en Educación
A20: 19 | B20: Maestría en Enseñanza de la Matemática
A21: 20 | B21: Maestría en Estética y Creación
A22: 21 | B22: Maestría en Historia
A23: 22 | B23: Maestría en Ingeniería de Sistemas y Computación
A24: 23 | B24: Maestría en Ingeniería Eléctrica
A25: 24 | B25: Maestría en Ingeniería Mecánica
A26: 25 | B26: Maestría en Instrumentación Física
A27: 26 | B27: Maestría en Literatura
A28: 27 | B28: Maestría en Literatura (Extensión Ibagué - Tolima, en convenio con la Universidad del Tolima)
A29: 28 | B29: Maestría en Sistemas Automáticos de Producción
A30: 29 | B30: Maestría en Sistemas Integrados de Gestión de la Calidad
A32: PREGRADO
A33: =1 -> 1 | B33: Administración del Medio Ambiente
A34: =A33+1 -> 2 | B34: Administración Industrial
A35: =A34+1 -> 3 | B35: Ciencias del Deporte y la Recreación
A36: 4 | B36: Ingeniería de Sistemas y Computación
A37: 5 | B37: Ingeniería de Sistemas y Computación (Nocturno)
A38: 6 | B38: Ingeniería Eléctrica
A39: 7 | B39: Ingeniería Electrónica (Nocturno)
A40: 8 | B40: Ingeniería en Mecatrónica (por ciclos propedéuticos)
A41: 9 | B41: Ingeniería Física
A42: 10 | B42: Ingeniería Industrial
A43: 11 | B43: Ingeniería Industrial (Nocturno)
A44: 12 | B44: Ingeniería Mecánica
A45: 13 | B45: Licenciatura en Artes Visuales
A46: 14 | B46: Licenciatura en Comunicación e Informática Educativa
A47: 15 | B47: Licenciatura en Español y Literatura (Nocturno)
A48: 16 | B48: Licenciatura en Etnoeducación y Desarrollo Comunitario
A49: 17 | B49: Licenciatura en Filosofía (Nocturno)
A50: 18 | B50: Licenciatura en Lengua Inglesa
A51: 19 | B51: Licenciatura en Matemáticas y Física
A52: 20 | B52: Licenciatura en Música
A53: 21 | B53: Licenciatura en Pedagogía Infantil
A54: 22 | B54: Licenciatura en Pedagogía Infantil (CERES Puerto Caldas (Pereira) - Risaralda)
A55: 23 | B55: Licenciatura en Pedagogía Infantil (CERES Quinchía - Risaralda)
A56: 24 | B56: Medicina
A57: 25 | B57: Medicina Veterinaria y Zootecnia
A58: 26 | B58: Química Industrial
A59: 27 | B59: Técnico Profesional en Mecatrónica (por ciclos propedéuticos)
A60: 28 | B60: Técnico Profesional en Procesos del Turismo Sostenible (por ciclos propedéuticos)
A61: 29 | B61: Tecnología Eléctrica
A62: 30 | B62: Tecnología en Atención Prehospitalaria
A63: 31 | B63: Tecnología Industrial
A64: 32 | B64: Tecnología Industrial (CERES Belén de Umbría - Risaralda)
A65: 33 | B65: Tecnología Mecánica
A66: 34 | B66: Tecnología Química
